Workbook

Sheet Title sheet
E10: Levelised Cost Calculator for Distributed Energy Resources
E13: Authors: | F13: Martin Scherfler
F14: Rohith C Unni
F15: Shiv Vembadi
E17: Version: | F17: v1.0, October 2020
E22: Acknowledgment This work forms part of the Sustainable Energy Transformation, Tamil Nadu (SET-TN) series of documents and activities. SET aims to facilitate higher clean energy deployment in the State by working with stakeholders in order to find sustainable and equitable solutions. SET is a collaborative initiative by Auroville Consulting (AVC), Citizen Consumer and civic Action Group (CAG), the World Resources Institute India (WRI).

Sheet How to use
B1: Introduction to the levelised cost calculator
B2: The tool has been developed to calculate levelised cost of RE (orange sheets) and energy storage (blue sheets). The sheet RE LCOE calc contains the calculation for the levelised cost of energy (LCOE) for a specific RE technology, based on inputs entered in the sheet RE Inputs & Results. The sheet LCOS calc contains the calculation for levelised cost of storage (LCOS), based on inputs entered in the sheet Storage Inputs & Results. ▪ LCOE can be calculated for Solar PV, Wind, Biomass, Bagasse and Small Hydro. The default input values have been taken from tariff orders, which are noted in the sheet Reference values. ▪ LCOS can be calculated for different storage scenarios, including: Solar PV + LI-ion storage (medium capacity), and Standalone Li-ion storage. (Use Scenario Manager to select other in-built scenarios.) The cost inputs are divided into following components: solar PV, inverter cost, power capacity (kW) component of the battery storage system, and energy capacity (kWh) component of the battery system. The power capacity costs (INR/kW) takes into account the costs of balance of system (BOS) and the EPC. The energy capacity costs takes into account the cost of the battery pack. Further, see Storage Inputs & Results for details on cost inputs for the storage system. ▪ The LCOS methodology is applicable to any storage technology, such as lead acid battery, vanadium redox flow battery, hydrogen storage - with the correct input parameters. The in-built scenarios are currently only for Li-ion application. LCOS calculation takes into account the storage module replacement and inverter replacement at the end of their lives (the EPC and BOS costs for the energy storage system are assumed constant for replacement). For LCOS calculation, one of the inputs is the base yearfor calculating the LCOS. For calculation of LCOS in a future base year (e.g., 2030), future Li-ion module costs (both initial cost in Year 1 and replacement costs later) are calculated based on the cost in the Current year and the cost improvement curve given in Cost projections sheet. The sheet also provides other references on historical solar inverter and solar PV capital cost trends. To input future costs of inverter and solar PV for LCOS calculations, the user can make reasonable assumptions based on these.
B17: Notes on using the Calculator
B18: ▪ Make sure Macros are enabled in the Security Settings ▪ Use the Inputs and Results sheets to enter the inputs. The levelised cost is displayed on the same sheet. ▪ Please also go through comments added to cells, wherever applicable, for more details ▪ The RE LCOE calc and LCOS calc sheets contains the levelised cost calculations ▪ The Inputs and Results sheets have two areas: Inputs area for entering inputs, the Outputs are are where the results are displayed, including the levelised cost: ▫ In the Inputs area, there is a general set of inputs, and then technology-specific inputs (which will only apply to a particular technology) ▫ In the Inputs area, the grey-colored values are the ones that reset to their defaults when a particular RE Technology or storage scenario is selected. Other input values don't have any defaults. ▪ In the case of Storage, debt (and the the debt repayment calculation) has been considered seperately for the storage system, the inverter and the solar PV plant ▪ In the RE LCOE calc sheet, even though the various parameters are calculated for 35 years, the LCOE is calculated only considering the number of years of plant life: e.g., 20 years in the case of Biomass. ▪ Simlar, in the LCOS calc sheet, for the scenario Solar PV + Storage, the levelised cost corresponds to the plant life of the solar PV. ▪ For calculating depreciation, straight line method is used. The annual is calculated as a percentage of the net capital cost. ▪ In the case of storage, in the absence of any tariff determination regulations on the same, the default depreciation rates for the storage system and for the inverter is such that the residual value (at the end of life) is 10% of the initial capital cost. ▪ The insurance is calculated as a perentage of the net asset value or is part of O&M expense, depending on the technology. ▪ In case of Small Hydro, the inputs are the average of normative values fixed by CERC for states other than Himachal Pradesh, Uttarakhand, West Bengal and N.E. states for the two size categories: below 5 MW, and between 5 MW to 25 MW.

Sheet RE Inputs & Results
F3: Select Technology:
B8: Inputs | I8: Solar PV | K8: Outputs
B10: Parameter | D10: Unit | F10: Value | K10: Gross capital cost | L10: INR | M10: =Capex_perkW*System_size -> 33500000
K11: Net capital cost | L11: INR | M11: =(Capex_perkW-Capitalsubsidy_perkW)*System_size -> 33500000
B12: General inputs | K12: Equity | L12: INR | M12: =Net_capex*Equity_percentage -> 10050000
B13: System capital cost per kW | D13: INR | F13: 33500 | K13: Debt | L13: INR | M13: =Net_capex-Equity -> 23450000
B14: Capital subsidy per kW | D14: INR | F14: 0 | K14: Annual depreciation for first n1 years (on gross capex) | L14: INR | M14: =Gross_capex*Depreciationrate_n1years*Depreciation_on_capexpercentage -> 1145700
B15: Plant size | D15: kW | F15: 1000 | K15: Annual depreciation after n1 years (on gross capex) | L15: INR | M15: =IF(n1_years<Plant_life,(Gross_capex*Depreciation_on_capexpercentage-Annual_depreciation_n1yearsgross*n1_years)/(Plant_life-n1_years),0) -> 0
B16: Life of plant | D16: years | F16: 25 | K16: Annual depreciation for first n1 years (on net capex) | L16: INR | M16: =Net_capex*Depreciationrate_n1years*Depreciation_on_capexpercentage -> 1145700
B17: Capacity utilisation factor | D17: % | F17: 0.19 | K17: Annual depreciation after n1 years (on net capex) | L17: INR | M17: =IF(n1_years<Plant_life,(Net_capex*Depreciation_on_capexpercentage-Annual_depreciation_n1yearsnet*n1_years)/(Plant_life-n1_years),0) -> 0
B18: Auxiliary consumption | D18: % | F18: 0
B19: Grid availability factor | D19: % | F19: 0.95
B20: Discount rate | D20: % | F20: 0.0953
B21: Equity | D21: % | F21: 0.3
B22: Return on equity | D22: % | F22: 0.176
B23: Loan tenure | D23: years | F23: 10
B24: Moratorium | D24: years | F24: 1
B25: Interest on loan | D25: % | F25: 0.1055
B26: Operation and Maintenance Expenses in year 1 | D26: % | F26: 0.014
B27: Annual increase in Operation and Maintenance expenses | D27: % | F27: 0.0572
B28: Insurance (% of depreciated asset value) | D28: % | F28: 0.0035
B29: Working capital - O&M | D29: months | F29: 1
B30: Working capital - Receivables | D30: months | F30: 2
B31: Working capital - Maintenance spares | D31: % | F31: -
B32: Interest on working capital | D32: % | F32: 0.1155
B33: n1 years | D33: years | F33: 25
B34: Depreciation rate for the first n1 years | D34: % | F34: 0.036
B35: Percentage of capital cost on which depreciation applies | D35: % | F35: 0.95
B37: Solar PV-specific inputs
B38: Annual solar panel degradation | D38: % | F38: 0.01
B40: Biomass/Bagasse-specific inputs
B41: Working capital - Fuel | D41: months | F41: 1
B42: Station heat rate | D42: kcal/kWh | F42: 3840
B43: Calorific value | D43: kcal/kg | F43: 3200
B44: Specific fuel consumption | D44: kg/kWh | F44: 1.41
B45: Fuel cost | D45: Rs/MT | F45: 1834.35
B46: Fuel cost escalation | D46: % | F46: 0.05

Sheet RE LCOE calc
A1: This sheet shows the LCOE calculations
M2: Year ----->
B3: Parameter | D3: Unit | F3: Cumulative | H3: 1 | I3: =H3+1 -> 2 | J3: =I3+1 -> 3 | K3: 4 | L3: 5 | M3: 6 | N3: 7 | O3: 8 | P3: 9 | Q3: 10 | R3: 11 | S3: 12 | T3: 13 | U3: 14 | V3: 15 | W3: 16 | X3: 17 | Y3: 18 | Z3: 19 | AA3: 20 | AB3: 21 | AC3: 22 | AD3: 23 | AE3: 24 | AF3: 25 | AG3: =AF3+1 -> 26 | AH3: 27 | AI3: 28 | AJ3: 29 | AK3: 30 | AL3: 31 | AM3: 32 | AN3: 33 | AO3: 34 | AP3: 35
B5: Cost of Generation
B6: Gross generation / kWh input (for Storage) | D6: kWh | H6: =System_size*24*365*CUF*Grid_availability*IF(Technology="Solar PV",(1-SolarPV_degradation)^(H3-1),1) -> 1581180 | I6: 1565368.2 | J6: 1549714.518 | K6: 1534217.373 | L6: 1518875.199 | M6: 1503686.447 | N6: 1488649.583 | O6: 1473763.087 | P6: 1459025.456 | Q6: 1444435.201 | R6: 1429990.849 | S6: 1415690.941 | T6: 1401534.031 | U6: 1387518.691 | V6: 1373643.504 | W6: 1359907.069 | X6: 1346307.998 | Y6: 1332844.919 | Z6: 1319516.469 | AA6: 1306321.305 | AB6: 1293258.092 | AC6: 1280325.511 | AD6: 1267522.256 | AE6: 1254847.033 | AF6: 1242298.563 | AG6: 1229875.577 | AH6: 1217576.821 | AI6: 1205401.053 | AJ6: 1193347.043 | AK6: 1181413.572 | AL6: 1169599.436 | AM6: 1157903.442 | AN6: 1146324.408 | AO6: 1134861.164 | AP6: 1123512.552
B7: Net generation / kWh available (for Storage) | D7: kWh | H7: =H6-(H6*Aux_consumption) -> 1581180 | I7: 1565368.2 | J7: 1549714.518 | K7: 1534217.373 | L7: 1518875.199 | M7: 1503686.447 | N7: 1488649.583 | O7: 1473763.087 | P7: 1459025.456 | Q7: 1444435.201 | R7: 1429990.849 | S7: 1415690.941 | T7: 1401534.031 | U7: 1387518.691 | V7: 1373643.504 | W7: 1359907.069 | X7: 1346307.998 | Y7: 1332844.919 | Z7: 1319516.469 | AA7: 1306321.305 | AB7: 1293258.092 | AC7: 1280325.511 | AD7: 1267522.256 | AE7: 1254847.033 | AF7: 1242298.563 | AG7: 1229875.577 | AH7: 1217576.821 | AI7: 1205401.053 | AJ7: 1193347.043 | AK7: 1181413.572 | AL7: 1169599.436 | AM7: 1157903.442 | AN7: 1146324.408 | AO7: 1134861.164 | AP7: 1123512.552
B8: Operation and Maintenance Expenses | D8: INR | H8: =OandM_year1*Gross_capex -> 469000 | I8: =H8+(H8*OandM_escalation) -> 495826.8 | J8: 524188.093 | K8: 554171.6519 | L8: 585870.2704 | M8: 619382.0498 | N8: 654810.7031 | O8: 692265.8753 | P8: 731863.4834 | Q8: 773726.0746 | R8: 817983.2061 | S8: 864771.8455 | T8: 914236.795 | U8: 966531.1397 | V8: 1021816.721 | W8: 1080264.637 | X8: 1142055.775 | Y8: 1207381.365 | Z8: 1276443.579 | AA8: 1349456.152 | AB8: 1426645.044 | AC8: 1508249.14 | AD8: 1594520.991 | AE8: 1685727.592 | AF8: 1782151.21 | AG8: 1884090.259 | AH8: 1991860.222 | AI8: 2105794.626 | AJ8: 2226246.079 | AK8: 2353587.355 | AL8: 2488212.552 | AM8: 2630538.309 | AN8: 2781005.101 | AO8: 2940078.593 | AP8: 3108251.088
B9: Insurance | D9: INR | H9: =Insurance*H42 -> 117250 | I9: 113240.05 | J9: 109230.1 | K9: 105220.15 | L9: 101210.2 | M9: 97200.25 | N9: 93190.3 | O9: 89180.35 | P9: 85170.4 | Q9: 81160.45 | R9: 77150.5 | S9: 73140.55 | T9: 69130.6 | U9: 65120.65 | V9: 61110.7 | W9: 57100.75 | X9: 53090.8 | Y9: 49080.85 | Z9: 45070.9 | AA9: 41060.95 | AB9: 37051 | AC9: 33041.05 | AD9: 29031.1 | AE9: 25021.15 | AF9: 21011.2 | AG9: 17001.25 | AH9: 17001.25 | AI9: 17001.25 | AJ9: 17001.25 | AK9: 17001.25 | AL9: 17001.25 | AM9: 17001.25 | AN9: 17001.25 | AO9: 17001.25 | AP9: 17001.25
B10: Depreciation (on gross capital cost) | H10: =IF(H3<=n1_years, Annual_depreciation_n1yearsgross, Annual_depreciation_aftern1gross) -> 1145700 | I10: 1145700 | J10: 1145700 | K10: 1145700 | L10: 1145700 | M10: 1145700 | N10: 1145700 | O10: 1145700 | P10: 1145700 | Q10: 1145700 | R10: 1145700 | S10: 1145700 | T10: 1145700 | U10: 1145700 | V10: 1145700 | W10: 1145700 | X10: 1145700 | Y10: 1145700 | Z10: 1145700 | AA10: 1145700 | AB10: 1145700 | AC10: 1145700 | AD10: 1145700 | AE10: 1145700 | AF10: 1145700 | AG10: 0 | AH10: 0 | AI10: 0 | AJ10: 0 | AK10: 0 | AL10: 0 | AM10: 0 | AN10: 0 | AO10: 0 | AP10: 0
B11: Depreciation (on net capital cost) | D11: INR | H11: =IF(H3<=n1_years, Annual_depreciation_n1yearsnet, Annual_depreciation_aftern1net) -> 1145700 | I11: 1145700 | J11: 1145700 | K11: 1145700 | L11: 1145700 | M11: 1145700 | N11: 1145700 | O11: 1145700 | P11: 1145700 | Q11: 1145700 | R11: 1145700 | S11: 1145700 | T11: 1145700 | U11: 1145700 | V11: 1145700 | W11: 1145700 | X11: 1145700 | Y11: 1145700 | Z11: 1145700 | AA11: 1145700 | AB11: 1145700 | AC11: 1145700 | AD11: 1145700 | AE11: 1145700 | AF11: 1145700 | AG11: 0 | AH11: 0 | AI11: 0 | AJ11: 0 | AK11: 0 | AL11: 0 | AM11: 0 | AN11: 0 | AO11: 0 | AP11: 0
B12: Interest on Term Loan | D12: INR | H12: =H27 -> 2473975 | I12: 2473975 | J12: 2199088.889 | K12: 1924202.778 | L12: 1649316.667 | M12: 1374430.556 | N12: 1099544.444 | O12: 824658.3333 | P12: 549772.2222 | Q12: 274886.1111 | R12: 0 | S12: 0 | T12: 0 | U12: 0 | V12: 0 | W12: 0 | X12: 0 | Y12: 0 | Z12: 0 | AA12: 0 | AB12: 0 | AC12: 0 | AD12: 0 | AE12: 0 | AF12: 0 | AG12: =AG27 -> 0 | AH12: 0 | AI12: 0 | AJ12: 0 | AK12: 0 | AL12: 0 | AM12: 0 | AN12: 0 | AO12: 0 | AP12: 0
B13: Interest on Working Capital | D13: INR | H13: =H32+H36 -> 119614.4782 | I13: =I32+I36 -> 120316.881 | J13: 115772.3189 | K13: 111274.9004 | L13: 106827.322 | M13: 102432.4346 | N13: 98093.25203 | O13: 93812.96069 | P13: 89594.92914 | Q13: 85442.71864 | R13: 81360.09415 | S13: 82642.59363 | T13: 84002.86744 | U13: 85445.36427 | V13: 86974.78727 | W13: 88596.10862 | X13: 90314.58491 | Y13: 92135.7734 | Z13: 94065.54923 | AA13: 96110.12359 | AB13: 98276.06296 | AC13: 100570.3094 | AD13: 103000.2021 | AE13: 105573.5001 | AF13: 108298.406 | AG13: 89128.86689 | AH13: 92260.69232 | AI13: 95571.65816 | AJ13: 99072.01125 | AK13: 102772.5845 | AL13: 106684.8306 | AM13: 110820.8572 | AN13: 115193.4644 | AO13: 119816.1849 | AP13: 124703.3249
B14: Return on Equity | D14: INR | H14: =Equity*ROE -> 1768800 | I14: 1768800 | J14: 1768800 | K14: 1768800 | L14: 1768800 | M14: 1768800 | N14: 1768800 | O14: 1768800 | P14: 1768800 | Q14: 1768800 | R14: 1768800 | S14: 1768800 | T14: 1768800 | U14: 1768800 | V14: 1768800 | W14: 1768800 | X14: 1768800 | Y14: 1768800 | Z14: 1768800 | AA14: 1768800 | AB14: 1768800 | AC14: 1768800 | AD14: 1768800 | AE14: 1768800 | AF14: 1768800 | AG14: 1768800 | AH14: 1768800 | AI14: 1768800 | AJ14: 1768800 | AK14: 1768800 | AL14: 1768800 | AM14: 1768800 | AN14: 1768800 | AO14: 1768800 | AP14: 1768800
B15: Fuel cost | D15: INR | H15: =IF(OR(Technology="Biomass",Technology="Bagasse"),(H6*'RE Inputs & Results'!$F$44*'RE Inputs & Results'!$F$45)/1000,0) -> 0 | I15: =IF(OR(Technology="Biomass",Technology="Bagasse"),H15*(1+Bio_fuelcost_escalation),0) -> 0 | J15: 0 | K15: 0 | L15: 0 | M15: 0 | N15: 0 | O15: 0 | P15: 0 | Q15: 0 | R15: 0 | S15: 0 | T15: 0 | U15: 0 | V15: 0 | W15: 0 | X15: 0 | Y15: 0 | Z15: 0 | AA15: 0 | AB15: 0 | AC15: 0 | AD15: 0 | AE15: 0 | AF15: 0 | AG15: 0 | AH15: 0 | AI15: 0 | AJ15: 0 | AK15: 0 | AL15: 0 | AM15: 0 | AN15: 0 | AO15: 0 | AP15: 0
B16: Total Cost of Generation | D16: INR | H16: =SUM(H8, H9, H11:H15) -> 6094339.478 | I16: =SUM(I8, I9, I11:I15) -> 6117858.731 | J16: =SUM(J8, J9, J11:J15) -> 5862779.401 | K16: 5609369.48 | L16: 5357724.459 | M16: 5107945.29 | N16: 4860138.7 | O16: 4614417.519 | P16: 4370901.035 | Q16: 4129715.354 | R16: 3890993.8 | S16: 3935054.989 | T16: 3981870.262 | U16: 4031597.154 | V16: 4084402.208 | W16: 4140461.496 | X16: 4199961.159 | Y16: 4263097.988 | Z16: 4330080.028 | AA16: 4401127.225 | AB16: 4476472.107 | AC16: 4556360.499 | AD16: 4641052.293 | AE16: 4730822.242 | AF16: 4825960.816 | AG16: 3759020.376 | AH16: 3869922.164 | AI16: 3987167.535 | AJ16: 4111119.34 | AK16: 4242161.189 | AL16: 4380698.632 | AM16: 4527160.417 | AN16: 4681999.815 | AO16: 4845696.027 | AP16: 5018755.663
B17: Cost Of Generation per kWh | D17: INR | H17: =H16/H7 -> 3.854298358 | I17: 3.908255407 | J17: 3.783135108 | K17: 3.656176484 | L17: 3.527429023 | M17: 3.396948413 | N17: 3.264797005 | O17: 3.131044305 | P17: 2.995767495 | Q17: 2.859052002 | R17: 2.720992097 | S17: 2.779600318 | T17: 2.841079969 | U17: 2.905616465 | V17: 2.973407726 | W17: 3.044665029 | X17: 3.11961391 | Y17: 3.198495136 | Z17: 3.281565732 | AA17: 3.36910009 | AB17: 3.461391145 | AC17: 3.558751631 | AD17: 3.661515427 | AE17: 3.770038991 | AF17: 3.884702889 | AG17: 3.056423305 | AH17: 3.178380285 | AI17: 3.307751826 | AJ17: 3.445032496 | AK17: 3.590750343 | AL17: 3.745469172 | AM17: 3.909790966 | AN17: 4.08435848 | AO17: 4.269858008 | AP17: 4.467022335
B18: Discount factor | H18: 1 | I18: =H18/(1+Discount_rate) -> 0.9129918744 | J18: 0.8335541627 | K18: 0.7610281774 | L18: 0.6948125421 | M18: 0.6343582052 | N18: 0.5791638867 | O18: 0.5287719225 | P18: 0.4827644687 | Q18: 0.4407600371 | R18: 0.4024103324 | S18: 0.3673973637 | T18: 0.3354308077 | U18: 0.3062456019 | V18: 0.2795997461 | W18: 0.2552722962 | X18: 0.2330615322 | Y18: 0.2127832851 | Z18: 0.1942694103 | AA18: 0.1773663931 | AB18: 0.1619340757 | AC18: 0.1478444953 | AD18: 0.1349808228 | AE18: 0.1232363945 | AF18: 0.1125138268 | AG18: 0.1027242096 | AH18: 0.09378636866 | AI18: 0.08562619251 | AJ18: 0.07817601799 | AK18: 0.0713740692 | AL18: 0.06516394522 | AM18: 0.05949415249 | AN18: 0.05431767779 | AO18: 0.04959159846 | AP18: 0.04527672643
B19: Present value | D19: INR | H19: =H17*H18 -> 3.854298358 | I19: =I17*I18 -> 3.568205429 | J19: 3.153448017 | K19: 2.782453326 | L19: 2.450901926 | M19: 2.154882098 | N19: 1.890852523 | O19: 1.655608316 | P19: 1.446250103 | Q19: 1.260155867 | R19: 1.094955334 | S19: 1.021217829 | T19: 0.9529857487 | U19: 0.889832263 | V19: 0.8313640451 | W19: 0.7772186331 | X19: 0.7270619978 | Y19: 0.6805863024 | Z19: 0.6375078397 | AA19: 0.5975651309 | AB19: 0.5605171756 | AC19: 0.5261418387 | AD19: 0.4942343652 | AE19: 0.4646060121 | AF19: 0.4370827879 | AG19: =AG17*AG18 -> 0.3139686682 | AH19: 0.2980887451 | AI19: 0.2832301946 | AJ19: 0.2693189224 | AK19: 0.2562864635 | AL19: 0.2440695479 | AM19: 0.2326096999 | AN19: 0.2218528679 | AO19: 0.2117490838 | AP19: 0.2022521482
B20: Levelised Cost of generation | D20: INR | F20: =SUM(OFFSET(H19,0,0,1,'RE Inputs & Results'!F16))/SUM(OFFSET(H18,0,0,1,'RE Inputs & Results'!F16)) -> 3.385188692
B21: Average Cost of Generation | D21: INR | F21: =AVERAGE(OFFSET(H17,0,0,1,'RE Inputs & Results'!F16)) -> 3.317897606
B23: Debt
B24: Debt opening balance | D24: INR | H24: =Debt -> 23450000 | I24: =H26 -> 23450000 | J24: =I26 -> 20844444.44 | K24: =J26 -> 18238888.89 | L24: 15633333.33 | M24: 13027777.78 | N24: 10422222.22 | O24: 7816666.667 | P24: 5211111.111 | Q24: 2605555.556 | R24: 0 | S24: 0 | T24: 0 | U24: 0 | V24: 0 | W24: 0 | X24: 0 | Y24: 0 | Z24: 0 | AA24: 0 | AB24: 0 | AC24: 0 | AD24: 0 | AE24: 0 | AF24: 0 | AG24: =AF26 -> 0 | AH24: 0 | AI24: 0 | AJ24: 0 | AK24: 0 | AL24: 0 | AM24: 0 | AN24: 0 | AO24: 0 | AP24: 0
B25: Debt repayment | D25: INR | H25: =IF(H3>Moratorium, IF(H24>0.001, Debt/(Loan_tenure-Moratorium), 0), 0) -> 0 | I25: 2605555.556 | J25: 2605555.556 | K25: 2605555.556 | L25: 2605555.556 | M25: 2605555.556 | N25: 2605555.556 | O25: 2605555.556 | P25: 2605555.556 | Q25: 2605555.556 | R25: 0 | S25: 0 | T25: 0 | U25: 0 | V25: 0 | W25: 0 | X25: 0 | Y25: 0 | Z25: 0 | AA25: 0 | AB25: 0 | AC25: 0 | AD25: 0 | AE25: 0 | AF25: 0 | AG25: 0 | AH25: 0 | AI25: 0 | AJ25: 0 | AK25: 0 | AL25: 0 | AM25: 0 | AN25: 0 | AO25: 0 | AP25: 0
B26: Debt closing balance | D26: INR | H26: =H24-H25 -> 23450000 | I26: =I24-I25 -> 20844444.44 | J26: =J24-J25 -> 18238888.89 | K26: =K24-K25 -> 15633333.33 | L26: 13027777.78 | M26: 10422222.22 | N26: 7816666.667 | O26: 5211111.111 | P26: 2605555.556 | Q26: 0 | R26: 0 | S26: 0 | T26: 0 | U26: 0 | V26: 0 | W26: 0 | X26: 0 | Y26: 0 | Z26: 0 | AA26: 0 | AB26: 0 | AC26: 0 | AD26: 0 | AE26: 0 | AF26: 0 | AG26: =AG24-AG25 -> 0 | AH26: 0 | AI26: 0 | AJ26: 0 | AK26: 0 | AL26: 0 | AM26: 0 | AN26: 0 | AO26: 0 | AP26: 0
B27: Interest | D27: INR | H27: =Interest*H24 -> 2473975 | I27: 2473975 | J27: 2199088.889 | K27: 1924202.778 | L27: 1649316.667 | M27: 1374430.556 | N27: 1099544.444 | O27: 824658.3333 | P27: 549772.2222 | Q27: 274886.1111 | R27: 0 | S27: 0 | T27: 0 | U27: 0 | V27: 0 | W27: 0 | X27: 0 | Y27: 0 | Z27: 0 | AA27: 0 | AB27: 0 | AC27: 0 | AD27: 0 | AE27: 0 | AF27: 0 | AG27: 0 | AH27: 0 | AI27: 0 | AJ27: 0 | AK27: 0 | AL27: 0 | AM27: 0 | AN27: 0 | AO27: 0 | AP27: 0
B28: Total debt service | D28: INR | H28: =H25+H27 -> 2473975 | I28: =I25+I27 -> 5079530.556 | J28: 4804644.444 | K28: 4529758.333 | L28: 4254872.222 | M28: 3979986.111 | N28: 3705100 | O28: 3430213.889 | P28: 3155327.778 | Q28: 2880441.667 | R28: 0 | S28: 0 | T28: 0 | U28: 0 | V28: 0 | W28: 0 | X28: 0 | Y28: 0 | Z28: 0 | AA28: 0 | AB28: 0 | AC28: 0 | AD28: 0 | AE28: 0 | AF28: 0 | AG28: =AG25+AG27 -> 0 | AH28: 0 | AI28: 0 | AJ28: 0 | AK28: 0 | AL28: 0 | AM28: 0 | AN28: 0 | AO28: 0 | AP28: 0
B30: Working Capital
B31: Operation and Maintenance wcap | D31: INR | H31: =H8/(12/Workingcapital_OandM) -> 39083.33333 | I31: 41318.9 | J31: 43682.34108 | K31: 46180.97099 | L31: 48822.52253 | M31: 51615.17082 | N31: 54567.55859 | O31: 57688.82294 | P31: 60988.62361 | Q31: 64477.17288 | R31: 68165.26717 | S31: 72064.32046 | T31: 76186.39959 | U31: 80544.26164 | V31: 85151.39341 | W31: 90022.05311 | X31: 95171.31455 | Y31: 100615.1137 | Z31: 106370.2982 | AA31: 112454.6793 | AB31: 118887.087 | AC31: 125687.4283 | AD31: 132876.7492 | AE31: 140477.2993 | AF31: 148512.6008 | AG31: 157007.5216 | AH31: 165988.3518 | AI31: 175482.8855 | AJ31: 185520.5066 | AK31: 196132.2796 | AL31: 207351.046 | AM31: 219211.5258 | AN31: 231750.4251 | AO31: 245006.5494 | AP31: 259020.924
B32: Interest on working capital - O&M | H32: =H31*Interest_working_capital -> 4514.125 | I32: 4772.33295 | J32: 5045.310395 | K32: 5333.902149 | L32: 5639.001352 | M32: 5961.55223 | N32: 6302.553017 | O32: 6663.05905 | P32: 7044.186027 | Q32: 7447.113468 | R32: 7873.088359 | S32: 8323.429013 | T32: 8799.529152 | U32: 9302.86222 | V32: 9834.985939 | W32: 10397.54713 | X32: 10992.28683 | Y32: 11621.04564 | Z32: 12285.76945 | AA32: 12988.51546 | AB32: 13731.45854 | AC32: 14516.89797 | AD32: 15347.26454 | AE32: 16225.12807 | AF32: 17153.20539 | AG32: 18134.36874 | AH32: 19171.65463 | AI32: 20268.27328 | AJ32: 21427.61851 | AK32: 22653.27829 | AL32: 23949.04581 | AM32: 25318.93123 | AN32: 26767.17409 | AO32: 28298.25645 | AP32: 29916.91672
B33: Maintenance spares wcap | D33: INR | H33: =IF(ISNUMBER(Workingcapital_spares),H31*Workingcapital_spares,0) -> 0 | I33: 0 | J33: 0 | K33: 0 | L33: 0 | M33: 0 | N33: 0 | O33: 0 | P33: 0 | Q33: 0 | R33: 0 | S33: 0 | T33: 0 | U33: 0 | V33: 0 | W33: 0 | X33: 0 | Y33: 0 | Z33: 0 | AA33: 0 | AB33: 0 | AC33: 0 | AD33: 0 | AE33: 0 | AF33: 0 | AG33: 0 | AH33: 0 | AI33: 0 | AJ33: 0 | AK33: 0 | AL33: 0 | AM33: 0 | AN33: 0 | AO33: 0 | AP33: 0
B34: Fuel cost wcap | H34: =IF(OR(Technology="Biomass",Technology="Bagasse"),H15/(12/Bio_workingcapital_fuel),0) -> 0 | I34: 0 | J34: 0 | K34: 0 | L34: 0 | M34: 0 | N34: 0 | O34: 0 | P34: 0 | Q34: 0 | R34: 0 | S34: 0 | T34: 0 | U34: 0 | V34: 0 | W34: 0 | X34: 0 | Y34: 0 | Z34: 0 | AA34: 0 | AB34: 0 | AC34: 0 | AD34: 0 | AE34: 0 | AF34: 0 | AG34: 0 | AH34: 0 | AI34: 0 | AJ34: 0 | AK34: 0 | AL34: 0 | AM34: 0 | AN34: 0 | AO34: 0 | AP34: 0
B35: Receivables wcap | D35: INR | H35: =IF(Workingcapital_receivables>0, (H8+H9+H11+H12+H14+H32)/(12/Workingcapital_receivables),0) -> 996539.8542 | I35: 1000385.697 | J35: 958675.3987 | K35: 917238.0803 | L35: 876089.3564 | M35: 835245.7346 | N35: 794724.6668 | O35: 754544.6029 | P35: 714725.0486 | Q35: 675286.6249 | R35: 636251.1324 | S35: 643455.9707 | T35: 651111.154 | U35: 659242.442 | V35: 667877.0678 | W35: 677043.8224 | X35: 686773.1436 | Y35: 697097.2101 | Z35: 708050.0414 | AA35: 719667.6029 | AB35: 731987.917 | AC35: 745051.1813 | AD35: 758899.8926 | AE35: 773578.9783 | AF35: 789135.9359 | AG35: 614670.9796 | AH35: 632805.5211 | AI35: 651977.3583 | AJ35: 672245.8246 | AK35: 693673.6472 | AL35: 716327.1412 | AM35: 740276.4151 | AN35: 765595.5875 | AO35: 792363.0165 | AP35: 820661.5425
B36: Interest on reveivables wcap | D36: INR | H36: =H35*Interest_working_capital -> 115100.3532 | I36: 115544.548 | J36: 110727.0086 | K36: 105940.9983 | L36: 101188.3207 | M36: 96470.88235 | N36: 91790.69901 | O36: 87149.90164 | P36: 82550.74311 | Q36: 77995.60517 | R36: 73487.00579 | S36: 74319.16462 | T36: 75203.33829 | U36: 76142.50205 | V36: 77139.80133 | W36: 78198.56149 | X36: 79322.29808 | Y36: 80514.72777 | Z36: 81779.77978 | AA36: 83121.60813 | AB36: 84544.60442 | AC36: 86053.41144 | AD36: 87652.93759 | AE36: 89348.37199 | AF36: 91145.20059 | AG36: 70994.49815 | AH36: 73089.03768 | AI36: 75303.38488 | AJ36: 77644.39274 | AK36: 80119.30625 | AL36: 82735.78481 | AM36: 85501.92595 | AN36: 88426.29035 | AO36: 91517.92841 | AP36: 94786.40815
B38: Financials
B39: Cash Flow | D39: INR
B40: Equity IRR | D40: %
B41: Cumulative Cash Flow | D41: INR | H41: =H39 -> 0 | I41: =H41+I39 -> 0 | J41: =I41+J39 -> 0 | K41: 0 | L41: 0 | M41: 0 | N41: 0 | O41: 0 | P41: 0 | Q41: 0 | R41: 0 | S41: 0 | T41: 0 | U41: 0 | V41: 0 | W41: 0 | X41: 0 | Y41: 0 | Z41: 0 | AA41: 0 | AB41: 0 | AC41: 0 | AD41: 0 | AE41: 0 | AF41: 0 | AG41: =AF41+AG39 -> 0 | AH41: 0 | AI41: 0 | AJ41: 0 | AK41: 0 | AL41: 0 | AM41: 0 | AN41: 0 | AO41: 0 | AP41: 0
B42: Asset value | H42: =Gross_capex -> 33500000 | I42: =H42-H10 -> 32354300 | J42: =I42-I10 -> 31208600 | K42: 30062900 | L42: 28917200 | M42: 27771500 | N42: 26625800 | O42: 25480100 | P42: 24334400 | Q42: 23188700 | R42: 22043000 | S42: 20897300 | T42: 19751600 | U42: 18605900 | V42: 17460200 | W42: 16314500 | X42: 15168800 | Y42: 14023100 | Z42: 12877400 | AA42: 11731700 | AB42: 10586000 | AC42: 9440300 | AD42: 8294600 | AE42: 7148900 | AF42: 6003200 | AG42: 4857500 | AH42: 4857500 | AI42: 4857500 | AJ42: 4857500 | AK42: 4857500 | AL42: 4857500 | AM42: 4857500 | AN42: 4857500 | AO42: 4857500 | AP42: 4857500

Sheet Reference values
B3: Assumption | D3: Unit | F3: Solar PV | H3: Wind | J3: Biomass | L3: Bagasse | N3: Small Hydro
B4: Capital cost | D4: INR/kW | F4: 33500 | H4: 52500 | J4: 55000 | L4: 52000 | N4: 74300
B5: Auxiliary Consumption | D5: % | F5: 0 | H5: 0 | J5: 10 | L5: 8.5 | N5: 1
B6: Capacity utilisation factor | D6: % | F6: 19 | H6: 29 | J6: 80 | L6: 55 | N6: 30
B7: Station heat rate | D7: kCal/kWh | J7: 3840 | L7: 3240
B8: Calorific value | D8: kCal/kg | J8: 3200 | L8: 2300
B9: Specific fuel consumption | D9: kg/kWh | J9: 1.2 | L9: 1.41
B10: Fuel rate | D10: INR/MT | J10: 2967.35 | L10: 1834.35
B11: Fuel cost escalation | D11: % | J11: 0.05 | L11: 0.05
B12: Grid availability factor | D12: % | F12: 95 | H12: 95
B13: Annual degradation | D13: % | F13: 1 | H13: 1.6
B14: Operation and Maintenance Expenses in year 1 | F14: 1.4 | H14: 0.0097 | J14: 4.39 | L14: 4.3 | N14: 3.56
B15: Annual increase in Operation and Maintenance Expenses | D15: % | F15: 5.72 | H15: 5 | J15: 5.72 | L15: 5.72 | N15: 5.72
B16: Insurance (% of depreciated asset value) | D16: % | F16: 0.35 | H16: 0.25 | N16: 0.35
B17: Equity | D17: % | F17: 30 | H17: 30 | J17: 30 | L17: 30 | N17: 30
B18: Loan tenure | D18: years | F18: 10 | H18: 10 | J18: 10 | L18: 10 | N18: 13
B19: Moratorium | D19: years | F19: 1 | H19: 1 | J19: 1 | L19: 1 | N19: 1
B20: Interest on loan | D20: % | F20: 10.55 | H20: 9.95 | J20: 9.95 | L20: 9.95 | N20: 9.97
B21: Working Capital - O&M | D21: months | F21: 1 | H21: 1 | J21: 1 | L21: 1 | N21: 1
B22: Working Capital – Receivables | D22: months | F22: 2 | H22: 2 | J22: 2 | L22: 2 | N22: 2
B23: Interest on Working Capital | D23: % | F23: 11.55 | H23: 10.95 | J23: 10.95 | L23: 10.95 | N23: 10.97
B24: Depreciation Rate | D24: % | F24: 3.6 | H24: 3.6 | J24: 4.5 | L24: 4.5 | N24: First 13 years: 5.28% After: 0.97
B25: Capital cost on which depreciation rate applies | D25: % | F25: 95 | H25: 95 | J25: 85 | L25: 85
B26: Discount rate | D26: % | F26: 9.53 | H26: 8.75
B27: Return on Equity | D27: % | F27: 17.6 | H27: 17.56 | J27: 17.56 | L27: 17.56 | N27: 17.56
B28: Economic Life | D28: years | F28: 25 | H28: 25 | J28: 20 | L28: 20 | N28: 35
B29: REFERENCES | F29: Order on generic tariff for solar power and related issues | H29: Order on generic tariff for wind power and related issues | J29: Comprehensive tariff order for Biomass based power plants | L29: Comprehensive tariff order for bagasse based co-generation power plants | N29: CERC RE Tariff order 2018-19

Sheet Storage Inputs & Results
D3: Select Technology/Scenario:
B8: Inputs | I8: Solar+Storage | K8: System size & outputs
B10: Parameter | D10: Unit | F10: Value | K10: Solar PV size | L10: kW | M10: =SolarPV_size -> 24
K11: Inverter capacity | L11: kW | M11: =Storage_inverter_capacity -> 12
B12: General inputs | K12: Battery capacity | L12: kWh | M12: =Storage_power_capacity*Storage_duration -> 48
B13: Current year | D13: year | F13: 2020 | K13: Battery life | L13: years | M13: =ROUND(Storage_life_cycles/Storage_annual_cycles,0) -> 11
B14: Base year for LCOS calculation | D14: year | F14: 2020 | K14: Solar generated passing through battery (Year 1) | L14: % | M14: =IF(I8="Standalone", "-", IF('LCOS calc'!H95>'LCOS calc'!H94*Storage_excess_solar, Storage_excess_solar, 'LCOS calc'!H95/'LCOS calc'!H94)) -> 0.4385964912
B15: Discount rate | D15: % | F15: 0.0953 | K15: Solar exported (Year 1) | L15: % | M15: =IF(I8="Standalone", "-", IF('LCOS calc'!H95>'LCOS calc'!H94*Storage_excess_solar, 0, ('LCOS calc'!H94*Storage_excess_solar-'LCOS calc'!H95)/'LCOS calc'!H94)) -> 0.06140350877
B16: Equity | D16: % | F16: 0.3 | K16: Net capital cost | L16: INR | M16: =Storage_module_capexperkWh*(1-Storage_capitalsubsidy_percentage)*Storage_capacity+Storage_invertercapex_perkW*Storage_inverter_capacity+Storage_rack_capexperkW*Storage_power_capacity+Storage_EPC_capexperkW*Storage_power_capacity+SolarPV_capex_perkW*(1-SolarPV_capitalsubsidy_perkW)*SolarPV_size -> 2264400
B17: Return on Equity | D17: % | F17: 0.176 | K17: Equity | L17: INR | M17: =Storage_net_capex*Storage_equity_percentage -> 679320
B18: Loan tenure | D18: years | F18: 10 | K18: Debt | L18: INR | M18: =Storage_net_capex-Storage_equity -> 1585080
B19: Moratorium | D19: years | F19: 1 | K19: Annual Depreciation | L19: INR | M19: =(Storage_module_capexperkWh*(1-Storage_capitalsubsidy_percentage)*Storage_capacity*Storage_depreciationrate_storage+Storage_invertercapex_perkW*Storage_inverter_capacity*Storage_depreciationrate_inverter+Storage_rack_capexperkW*Storage_power_capacity*Storage_depreciationrate_storage+Storage_EPC_capexperkW*Storage_power_capacity*Storage_depreciationrate_storage+SolarPV_capex_perkW*(1-SolarPV_capitalsubsidy_perkW)*SolarPV_size*Storage_depreciationrate_solarPV)*Storage_depreciation_on_capexpercentage -> 130304.8699
B20: Interest on loan | D20: % | F20: 0.1055
B21: Annual increase in Operation and Maintenance Expenses | D21: % | F21: 0.0572
B22: Insurance (% of depreciated asset value) | D22: % | F22: 0.0035
B23: Working Capital - O&M | D23: months | F23: 1
B24: Working Capital - Receivables | D24: months | F24: 2
B25: Interest on Working Capital | D25: % | F25: 0.1155
B26: Percentage of capital cost on which depreciation applies | D26: % | F26: 0.95
B28: Solar PV-specific inputs
B29: System capital cost per kW (w/o solar PCU cost) | D29: INR | F29: 41000
B30: Capital subsidy per kW | D30: INR | F30: 0
B31: Solar PV size | D31: kW | F31: 24
B32: Life of solar plant | D32: years | F32: 25
B33: CUF | D33: % | F33: 0.19
B34: Operation and Maintenance Expenses in year 1 | D34: % | F34: 0.014
B35: Depreciation rate | D35: % | F35: 0.036
B36: Annual solar panel degradation | D36: % | F36: 0.02
B38: Inverter-specific inputs
B39: Inverter capital cost per kW in base year | D39: INR/kW | F39: 20000
B40: Inverter capacity | D40: kW | F40: 12
B41: Inverter replacement year | D41: years | F41: 14
B42: Cost improvement in replacement year | D42: % | F42: 0.6
B43: O&M expenses in Year 1 - Power | D43: % | F43: 0.01
B44: Depreciation rate | D44: % | F44: =0.9/(Storage_inverter_replacementyear-1) -> 0.06923076923
B46: Battery storage-specific inputs
B47: Battery pack capital cost per kWh in current year | D47: INR/kWh | F47: 20000
B48: Battery pack capital cost per kWh in base year | D48: INR/kWh | F48: =F47*VLOOKUP(Storage_base_year, 'Cost projections'!$B$4:$D$49, 3)/VLOOKUP(2020, 'Cost projections'!$B$4:$D$49, 3) -> 20000
B49: Capital subsidy per kWh | D49: % | F49: 0
B50: Cost for storage container and others | D50: INR/kW | F50: 5500
B51: EPC cost | D51: INR/kW | F51: 1200
B52: Battery power capacity | D52: kW | F52: 12
B53: Storage duration (E to P ratio) at 100% DoD | D53: hr | F53: 4
B54: Storage round trip efficiency | D54: % | F54: 0.97
B55: Depth of Discharge | D55: % | F55: 0.8
B56: Storage cycles per year at given DoD | D56: cycles | F56: 365
B57: End of life capacity relative to initial capacity | D57: % | F57: 0.8
B58: Storage cycle life | D58: cycles | F58: 4000
B59: Storage shelf life | D59: years | F59: 13
B60: Cycle degradation | D60: % | F60: =1-Storage_endoflife_capacity^(1/Storage_life_cycles) -> 5.578433182e-05
B61: Time degradation | D61: % | F61: =1-Storage_endoflife_capacity^(1/Storage_shelf_life) -> 0.01701841115
B62: Excess solar generation available for storage | D62: % | F62: 0.5
B63: O&M expenses in Year 1 - Energy | D63: % | F63: 0.0068
B64: Depreciation rate | D64: % | F64: =0.9/Storage_life -> 0.08181818182
B65: Consumer category | F65: LT Industries
B66: Electricity tariff for charging battery | D66: INR/kWh | F66: =VLOOKUP(Storage_charging_source,'Storage charging cost'!B4:D18,3,0) -> 6.35
B67: Cost escalation for input electricty | D67: % | F67: 0.05

Sheet LCOS calc
A1: This sheet shows the LCOS calculations
M2: Year ----->
B3: Parameter | D3: Unit | F3: Cumulative | H3: 1 | I3: =H3+1 -> 2 | J3: =I3+1 -> 3 | K3: 4 | L3: 5 | M3: 6 | N3: 7 | O3: 8 | P3: 9 | Q3: 10 | R3: 11 | S3: 12 | T3: 13 | U3: 14 | V3: 15 | W3: 16 | X3: 17 | Y3: 18 | Z3: 19 | AA3: 20 | AB3: 21 | AC3: 22 | AD3: 23 | AE3: 24 | AF3: 25
B5: Storage cost timeline
B6: Year | H6: =Storage_base_year -> 2020 | I6: =H6+1 -> 2021 | J6: =I6+1 -> 2022 | K6: 2023 | L6: 2024 | M6: 2025 | N6: 2026 | O6: 2027 | P6: 2028 | Q6: 2029 | R6: 2030 | S6: 2031 | T6: 2032 | U6: 2033 | V6: 2034 | W6: 2035 | X6: 2036 | Y6: 2037 | Z6: 2038 | AA6: 2039 | AB6: 2040 | AC6: 2041 | AD6: 2042 | AE6: 2043 | AF6: 2044
B7: Storage operation year | H7: =IF(MOD(H3,Storage_life)=0, Storage_life, MOD(H3,Storage_life)) -> 1 | I7: 2 | J7: 3 | K7: 4 | L7: 5 | M7: 6 | N7: 7 | O7: 8 | P7: 9 | Q7: 10 | R7: 11 | S7: 1 | T7: 2 | U7: 3 | V7: 4 | W7: 5 | X7: 6 | Y7: 7 | Z7: 8 | AA7: 9 | AB7: 10 | AC7: 11 | AD7: 1 | AE7: 2 | AF7: 3
B8: Battery pack cost per kWh in year n | D8: INR | H8: =IF(H7=1, (Storage_module_capexperkWh*VLOOKUP('LCOS calc'!H6, 'Cost projections'!$B$4:$D$49, 3)/VLOOKUP(Storage_base_year, 'Cost projections'!$B$4:$D$49, 3)), 0) -> 20000 | I8: =IF(I7=1, (Storage_module_capexperkWh*VLOOKUP('LCOS calc'!I6, 'Cost projections'!$B$4:$D$39, 3)/VLOOKUP(Storage_base_year, 'Cost projections'!$B$4:$D$39, 3)), 0) -> 0 | J8: =IF(J7=1, (Storage_module_capexperkWh*VLOOKUP('LCOS calc'!J6, 'Cost projections'!$B$4:$D$39, 3)/VLOOKUP(Storage_base_year, 'Cost projections'!$B$4:$D$39, 3)), 0) -> 0 | K8: =IF(K7=1, (Storage_module_capexperkWh*VLOOKUP('LCOS calc'!K6, 'Cost projections'!$B$4:$D$39, 3)/VLOOKUP(Storage_base_year, 'Cost projections'!$B$4:$D$39, 3)), 0) -> 0 | L8: =IF(L7=1, (Storage_module_capexperkWh*VLOOKUP('LCOS calc'!L6, 'Cost projections'!$B$4:$D$39, 3)/VLOOKUP(Storage_base_year, 'Cost projections'!$B$4:$D$39, 3)), 0) -> 0 | M8: =IF(M7=1, (Storage_module_capexperkWh*VLOOKUP('LCOS calc'!M6, 'Cost projections'!$B$4:$D$39, 3)/VLOOKUP(Storage_base_year, 'Cost projections'!$B$4:$D$39, 3)), 0) -> 0 | N8: =IF(N7=1, (Storage_module_capexperkWh*VLOOKUP('LCOS calc'!N6, 'Cost projections'!$B$4:$D$39, 3)/VLOOKUP(Storage_base_year, 'Cost projections'!$B$4:$D$39, 3)), 0) -> 0 | O8: =IF(O7=1, (Storage_module_capexperkWh*VLOOKUP('LCOS calc'!O6, 'Cost projections'!$B$4:$D$39, 3)/VLOOKUP(Storage_base_year, 'Cost projections'!$B$4:$D$39, 3)), 0) -> 0 | P8: =IF(P7=1, (Storage_module_capexperkWh*VLOOKUP('LCOS calc'!P6, 'Cost projections'!$B$4:$D$39, 3)/VLOOKUP(Storage_base_year, 'Cost projections'!$B$4:$D$39, 3)), 0) -> 0 | Q8: =IF(Q7=1, (Storage_module_capexperkWh*VLOOKUP('LCOS calc'!Q6, 'Cost projections'!$B$4:$D$39, 3)/VLOOKUP(Storage_base_year, 'Cost projections'!$B$4:$D$39, 3)), 0) -> 0 | R8: =IF(R7=1, (Storage_module_capexperkWh*VLOOKUP('LCOS calc'!R6, 'Cost projections'!$B$4:$D$39, 3)/VLOOKUP(Storage_base_year, 'Cost projections'!$B$4:$D$39, 3)), 0) -> 0 | S8: =IF(S7=1, (Storage_module_capexperkWh*VLOOKUP('LCOS calc'!S6, 'Cost projections'!$B$4:$D$39, 3)/VLOOKUP(Storage_base_year, 'Cost projections'!$B$4:$D$39, 3)), 0) -> 8000 | T8: =IF(T7=1, (Storage_module_capexperkWh*VLOOKUP('LCOS calc'!T6, 'Cost projections'!$B$4:$D$39, 3)/VLOOKUP(Storage_base_year, 'Cost projections'!$B$4:$D$39, 3)), 0) -> 0 | U8: =IF(U7=1, (Storage_module_capexperkWh*VLOOKUP('LCOS calc'!U6, 'Cost projections'!$B$4:$D$39, 3)/VLOOKUP(Storage_base_year, 'Cost projections'!$B$4:$D$39, 3)), 0) -> 0 | V8: =IF(V7=1, (Storage_module_capexperkWh*VLOOKUP('LCOS calc'!V6, 'Cost projections'!$B$4:$D$39, 3)/VLOOKUP(Storage_base_year, 'Cost projections'!$B$4:$D$39, 3)), 0) -> 0 | W8: =IF(W7=1, (Storage_module_capexperkWh*VLOOKUP('LCOS calc'!W6, 'Cost projections'!$B$4:$D$39, 3)/VLOOKUP(Storage_base_year, 'Cost projections'!$B$4:$D$39, 3)), 0) -> 0 | X8: =IF(X7=1, (Storage_module_capexperkWh*VLOOKUP('LCOS calc'!X6, 'Cost projections'!$B$4:$D$39, 3)/VLOOKUP(Storage_base_year, 'Cost projections'!$B$4:$D$39, 3)), 0) -> 0 | Y8: =IF(Y7=1, (Storage_module_capexperkWh*VLOOKUP('LCOS calc'!Y6, 'Cost projections'!$B$4:$D$39, 3)/VLOOKUP(Storage_base_year, 'Cost projections'!$B$4:$D$39, 3)), 0) -> 0 | Z8: =IF(Z7=1, (Storage_module_capexperkWh*VLOOKUP('LCOS calc'!Z6, 'Cost projections'!$B$4:$D$39, 3)/VLOOKUP(Storage_base_year, 'Cost projections'!$B$4:$D$39, 3)), 0) -> 0 | AA8: =IF(AA7=1, (Storage_module_capexperkWh*VLOOKUP('LCOS calc'!AA6, 'Cost projections'!$B$4:$D$39, 3)/VLOOKUP(Storage_base_year, 'Cost projections'!$B$4:$D$39, 3)), 0) -> 0 | AB8: =IF(AB7=1, (Storage_module_capexperkWh*VLOOKUP('LCOS calc'!AB6, 'Cost projections'!$B$4:$D$39, 3)/VLOOKUP(Storage_base_year, 'Cost projections'!$B$4:$D$39, 3)), 0) -> 0 | AC8: =IF(AC7=1, (Storage_module_capexperkWh*VLOOKUP('LCOS calc'!AC6, 'Cost projections'!$B$4:$D$39, 3)/VLOOKUP(Storage_base_year, 'Cost projections'!$B$4:$D$39, 3)), 0) -> 0 | AD8: =IF(AD7=1, (Storage_module_capexperkWh*VLOOKUP('LCOS calc'!AD6, 'Cost projections'!$B$4:$D$39, 3)/VLOOKUP(Storage_base_year, 'Cost projections'!$B$4:$D$39, 3)), 0) -> 5454.545455 | AE8: =IF(AE7=1, (Storage_module_capexperkWh*VLOOKUP('LCOS calc'!AE6, 'Cost projections'!$B$4:$D$39, 3)/VLOOKUP(Storage_base_year, 'Cost projections'!$B$4:$D$39, 3)), 0) -> 0 | AF8: =IF(AF7=1, (Storage_module_capexperkWh*VLOOKUP('LCOS calc'!AF6, 'Cost projections'!$B$4:$D$39, 3)/VLOOKUP(Storage_base_year, 'Cost projections'!$B$4:$D$39, 3)), 0) -> 0
B9: Gross capital cost | D9: INR | H9: =IF(H7=1, (Storage_capacity*H8+Storage_rack_capexperkW*Storage_power_capacity+Storage_EPC_capexperkW*Storage_power_capacity), 0) -> 1040400 | I9: 0 | J9: 0 | K9: 0 | L9: 0 | M9: 0 | N9: 0 | O9: 0 | P9: 0 | Q9: 0 | R9: 0 | S9: 464400 | T9: 0 | U9: 0 | V9: 0 | W9: 0 | X9: 0 | Y9: 0 | Z9: 0 | AA9: 0 | AB9: 0 | AC9: 0 | AD9: 342218.1818 | AE9: 0 | AF9: 0
B10: Net capital cost | D10: INR | H10: =IF(H7=1, (Storage_capacity*H8*(1-Storage_capitalsubsidy_percentage)+Storage_rack_capexperkW*Storage_power_capacity+Storage_EPC_capexperkW*Storage_power_capacity), 0) -> 1040400 | I10: 0 | J10: 0 | K10: 0 | L10: 0 | M10: 0 | N10: 0 | O10: 0 | P10: 0 | Q10: 0 | R10: 0 | S10: 464400 | T10: 0 | U10: 0 | V10: 0 | W10: 0 | X10: 0 | Y10: 0 | Z10: 0 | AA10: 0 | AB10: 0 | AC10: 0 | AD10: 342218.1818 | AE10: 0 | AF10: 0
B11: Equity | D11: INR | H11: =H10*Storage_equity_percentage -> 312120 | I11: 0 | J11: 0 | K11: 0 | L11: 0 | M11: 0 | N11: 0 | O11: 0 | P11: 0 | Q11: 0 | R11: 0 | S11: 139320 | T11: 0 | U11: 0 | V11: 0 | W11: 0 | X11: 0 | Y11: 0 | Z11: 0 | AA11: 0 | AB11: 0 | AC11: 0 | AD11: 102665.4545 | AE11: 0 | AF11: 0
B12: Debt | D12: INR | H12: =H10-H11 -> 728280 | I12: =I10-I11 -> 0 | J12: 0 | K12: 0 | L12: 0 | M12: 0 | N12: 0 | O12: 0 | P12: 0 | Q12: 0 | R12: 0 | S12: 325080 | T12: 0 | U12: 0 | V12: 0 | W12: 0 | X12: 0 | Y12: 0 | Z12: 0 | AA12: 0 | AB12: 0 | AC12: 0 | AD12: 239552.7273 | AE12: 0 | AF12: 0
B13: Annual depreciation (on gross capital cost) | D13: INR | H13: =IF(H7=1, H9*Storage_depreciationrate_storage*Storage_depreciation_on_capexpercentage, G13) -> 80867.45455 | I13: 80867.45455 | J13: 80867.45455 | K13: 80867.45455 | L13: 80867.45455 | M13: 80867.45455 | N13: 80867.45455 | O13: 80867.45455 | P13: 80867.45455 | Q13: 80867.45455 | R13: 80867.45455 | S13: 36096.54545 | T13: 36096.54545 | U13: 36096.54545 | V13: 36096.54545 | W13: 36096.54545 | X13: 36096.54545 | Y13: 36096.54545 | Z13: 36096.54545 | AA13: 36096.54545 | AB13: 36096.54545 | AC13: 36096.54545 | AD13: 26599.68595 | AE13: 26599.68595 | AF13: 26599.68595
B14: Annual depreciation (on net capital cost) | D14: INR | H14: =IF(H7=1, H10*Storage_depreciationrate_storage*Storage_depreciation_on_capexpercentage, G14) -> 80867.45455 | I14: 80867.45455 | J14: 80867.45455 | K14: 80867.45455 | L14: 80867.45455 | M14: 80867.45455 | N14: 80867.45455 | O14: 80867.45455 | P14: 80867.45455 | Q14: 80867.45455 | R14: 80867.45455 | S14: 36096.54545 | T14: 36096.54545 | U14: 36096.54545 | V14: 36096.54545 | W14: 36096.54545 | X14: 36096.54545 | Y14: 36096.54545 | Z14: 36096.54545 | AA14: 36096.54545 | AB14: 36096.54545 | AC14: 36096.54545 | AD14: 26599.68595 | AE14: 26599.68595 | AF14: 26599.68595
B15: Asset value | D15: INR | H15: =IF(H7=1, H9, G15-G13) -> 1040400 | I15: =IF(I7=1, I9, H15-H13) -> 959532.5455 | J15: =IF(J7=1, J9, I15-I13) -> 878665.0909 | K15: 797797.6364 | L15: 716930.1818 | M15: 636062.7273 | N15: 555195.2727 | O15: 474327.8182 | P15: 393460.3636 | Q15: 312592.9091 | R15: 231725.4545 | S15: 464400 | T15: 428303.4545 | U15: 392206.9091 | V15: 356110.3636 | W15: 320013.8182 | X15: 283917.2727 | Y15: 247820.7273 | Z15: 211724.1818 | AA15: 175627.6364 | AB15: 139531.0909 | AC15: 103434.5455 | AD15: 342218.1818 | AE15: 315618.4959 | AF15: 289018.8099
B16: Operation and Maintenance Expenses | D16: INR | H16: =IF(H7=1,H9*Storage_OndMenergy_year1, G16+(G16*Storage_OandM_escalation)) -> 7074.72 | I16: 7479.393984 | J16: 7907.21532 | K16: 8359.508036 | L16: 8837.671896 | M16: 9343.186728 | N16: 9877.617009 | O16: 10442.6167 | P16: 11039.93438 | Q16: 11671.41862 | R16: 12339.02377 | S16: 3157.92 | T16: 3338.553024 | U16: 3529.518257 | V16: 3731.406701 | W16: 3944.843165 | X16: 4170.488194 | Y16: 4409.040118 | Z16: 4661.237213 | AA16: 4927.859982 | AB16: 5209.733573 | AC16: 5507.730333 | AD16: 2327.083636 | AE16: 2460.19282 | AF16: 2600.91585
B17: Insurance | D17: INR | H17: =Storage_insurance*H15 -> 3641.4 | I17: 3358.363909 | J17: 3075.327818 | K17: 2792.291727 | L17: 2509.255636 | M17: 2226.219545 | N17: 1943.183455 | O17: 1660.147364 | P17: 1377.111273 | Q17: 1094.075182 | R17: 811.0390909 | S17: 1625.4 | T17: 1499.062091 | U17: 1372.724182 | V17: 1246.386273 | W17: 1120.048364 | X17: 993.7104545 | Y17: 867.3725455 | Z17: 741.0346364 | AA17: 614.6967273 | AB17: 488.3588182 | AC17: 362.0209091 | AD17: 1197.763636 | AE17: 1104.664736 | AF17: 1011.565835
B18: Interest on Term Loan | D18: INR | H18: =H26 -> 76833.54 | I18: =I26 -> 76833.54 | J18: 69150.186 | K18: 61466.832 | L18: 53783.478 | M18: 46100.124 | N18: 38416.77 | O18: 30733.416 | P18: 23050.062 | Q18: 15366.708 | R18: 7683.354 | S18: 34295.94 | T18: 34295.94 | U18: 30866.346 | V18: 27436.752 | W18: 24007.158 | X18: 20577.564 | Y18: 17147.97 | Z18: 13718.376 | AA18: 10288.782 | AB18: 6859.188 | AC18: 3429.594 | AD18: 25272.81273 | AE18: 25272.81273 | AF18: 22745.53145
B19: Interest on Working Capital | D19: INR | H19: =H31+H33 -> 4368.897008 | I19: =I31+I33 -> 4375.208503 | J19: 4234.288102 | K19: 4094.078846 | L19: 3954.621413 | M19: 3815.958807 | N19: 3678.136492 | O19: 3541.202533 | P19: 3405.207743 | Q19: 3270.205844 | R19: 3136.253628 | S19: 1950.130498 | T19: 1952.94774 | U19: 1890.045554 | V19: 1827.4608 | W19: 1765.211634 | X19: 1703.317253 | Y19: 1641.79795 | Z19: 1580.675179 | AA19: 1519.971623 | AB19: 1459.711259 | AC19: 1399.91944 | AD19: 1437.058815 | AE19: 1439.134851 | AF19: 1392.781983
B20: Return on Equity | D20: INR | H20: =OFFSET(H11,0,1-H7)*Storage_ROE -> 54933.12 | I20: 54933.12 | J20: 54933.12 | K20: 54933.12 | L20: 54933.12 | M20: 54933.12 | N20: 54933.12 | O20: 54933.12 | P20: 54933.12 | Q20: 54933.12 | R20: 54933.12 | S20: 24520.32 | T20: 24520.32 | U20: 24520.32 | V20: 24520.32 | W20: 24520.32 | X20: 24520.32 | Y20: 24520.32 | Z20: 24520.32 | AA20: 24520.32 | AB20: 24520.32 | AC20: 24520.32 | AD20: 18069.12 | AE20: 18069.12 | AF20: 18069.12
B22: Debt
B23: Debt opening balance | D23: INR | H23: =IF(H7=1, H12, G25) -> 728280 | I23: 728280 | J23: 655452 | K23: 582624 | L23: 509796 | M23: 436968 | N23: 364140 | O23: 291312 | P23: 218484 | Q23: 145656 | R23: 72828 | S23: 325080 | T23: 325080 | U23: 292572 | V23: 260064 | W23: 227556 | X23: 195048 | Y23: 162540 | Z23: 130032 | AA23: 97524 | AB23: 65016 | AC23: 32508 | AD23: 239552.7273 | AE23: 239552.7273 | AF23: 215597.4545
B24: Debt repayment | D24: INR | H24: =IF(H7>Storage_moratorium, IF(H23>0, OFFSET(H12,0,1-H7)/(Storage_life-Storage_moratorium), 0), 0) -> 0 | I24: 72828 | J24: 72828 | K24: 72828 | L24: 72828 | M24: 72828 | N24: 72828 | O24: 72828 | P24: 72828 | Q24: 72828 | R24: 72828 | S24: 0 | T24: 32508 | U24: 32508 | V24: 32508 | W24: 32508 | X24: 32508 | Y24: 32508 | Z24: 32508 | AA24: 32508 | AB24: 32508 | AC24: 32508 | AD24: 0 | AE24: 23955.27273 | AF24: 23955.27273
B25: Debt closing balance | D25: INR | H25: =H23-H24 -> 728280 | I25: =I23-I24 -> 655452 | J25: =J23-J24 -> 582624 | K25: =K23-K24 -> 509796 | L25: 436968 | M25: 364140 | N25: 291312 | O25: 218484 | P25: 145656 | Q25: 72828 | R25: 0 | S25: 325080 | T25: 292572 | U25: 260064 | V25: 227556 | W25: 195048 | X25: 162540 | Y25: 130032 | Z25: 97524 | AA25: 65016 | AB25: 32508 | AC25: 0 | AD25: 239552.7273 | AE25: 215597.4545 | AF25: 191642.1818
B26: Interest | D26: INR | H26: =Storage_interest*H23 -> 76833.54 | I26: 76833.54 | J26: 69150.186 | K26: 61466.832 | L26: 53783.478 | M26: 46100.124 | N26: 38416.77 | O26: 30733.416 | P26: 23050.062 | Q26: 15366.708 | R26: 7683.354 | S26: 34295.94 | T26: 34295.94 | U26: 30866.346 | V26: 27436.752 | W26: 24007.158 | X26: 20577.564 | Y26: 17147.97 | Z26: 13718.376 | AA26: 10288.782 | AB26: 6859.188 | AC26: 3429.594 | AD26: 25272.81273 | AE26: 25272.81273 | AF26: 22745.53145
B27: Total debt service | D27: INR | H27: =H24+H26 -> 76833.54 | I27: =I24+I26 -> 149661.54 | J27: 141978.186 | K27: 134294.832 | L27: 126611.478 | M27: 118928.124 | N27: 111244.77 | O27: 103561.416 | P27: 95878.062 | Q27: 88194.708 | R27: 80511.354 | S27: 34295.94 | T27: 66803.94 | U27: 63374.346 | V27: 59944.752 | W27: 56515.158 | X27: 53085.564 | Y27: 49655.97 | Z27: 46226.376 | AA27: 42796.782 | AB27: 39367.188 | AC27: 35937.594 | AD27: 25272.81273 | AE27: 49228.08545 | AF27: 46700.80418
B29: Working Capital
B30: Operation and Maintenance wcap | D30: INR | H30: =H16/(12/Storage_workingcapital_OandM) -> 589.56 | I30: 623.282832 | J30: 658.93461 | K30: 696.6256697 | L30: 736.472658 | M30: 778.598894 | N30: 823.1347508 | O30: 870.2180585 | P30: 919.9945315 | Q30: 972.6182187 | R30: 1028.251981 | S30: 263.16 | T30: 278.212752 | U30: 294.1265214 | V30: 310.9505584 | W30: 328.7369304 | X30: 347.5406828 | Y30: 367.4200099 | Z30: 388.4364344 | AA30: 410.6549985 | AB30: 434.1444644 | AC30: 458.9775277 | AD30: 193.9236364 | AE30: 205.0160684 | AF30: 216.7429875
B31: Interest on working capital - O&M | H31: =H30*Storage_interest_workingcap -> 68.09418 | I31: 71.9891671 | J31: 76.10694745 | K31: 80.46026485 | L31: 85.062592 | M31: 89.92817226 | N31: 95.07206371 | O31: 100.5101858 | P31: 106.2593684 | Q31: 112.3374043 | R31: 118.7631038 | S31: 30.39498 | T31: 32.13357286 | U31: 33.97161322 | V31: 35.9147895 | W31: 37.96911546 | X31: 40.14094886 | Y31: 42.43701114 | Z31: 44.86440818 | AA31: 47.43065232 | AB31: 50.14368564 | AC31: 53.01190445 | AD31: 22.39818 | AE31: 23.6793559 | AF31: 25.03381505
B32: Receivables wcap | D32: INR | H32: =IF(Storage_workingcapital_receivables>0, (H16+H17+H14+H18+H20+H31)/(12/Storage_workingcapital_receivables),0) -> 37236.38812 | I32: 37257.31027 | J32: 36001.56844 | K32: 34749.94443 | L32: 33502.67378 | M32: 32260.0055 | N32: 31022.20285 | O32: 29789.54413 | P32: 28562.32359 | Q32: 27340.85229 | R32: 26125.45908 | S32: 16621.08674 | T32: 16630.42569 | U32: 16069.90425 | V32: 15511.22087 | W32: 14954.48068 | X32: 14399.79484 | Y32: 13847.28085 | Z32: 13297.06295 | AA32: 12749.27247 | AB32: 12204.04826 | AC32: 11661.5371 | AD32: 12248.14402 | AE32: 12255.02593 | AF32: 11841.97548
B33: Interest on reveivables wcap | D33: INR | H33: =H32*Storage_interest_workingcap -> 4300.802828 | I33: 4303.219336 | J33: 4158.181155 | K33: 4013.618582 | L33: 3869.558821 | M33: 3726.030635 | N33: 3583.064429 | O33: 3440.692347 | P33: 3298.948375 | Q33: 3157.86844 | R33: 3017.490524 | S33: 1919.735518 | T33: 1920.814167 | U33: 1856.073941 | V33: 1791.54601 | W33: 1727.242519 | X33: 1663.176304 | Y33: 1599.360939 | Z33: 1535.810771 | AA33: 1472.54097 | AB33: 1409.567573 | AC33: 1346.907535 | AD33: 1414.660635 | AE33: 1415.455495 | AF33: 1367.748168
B35: Inverter cost timeline
B36: Year | H36: =Storage_base_year -> 2020 | I36: =H36+1 -> 2021 | J36: =I36+1 -> 2022 | K36: 2023 | L36: 2024 | M36: 2025 | N36: 2026 | O36: 2027 | P36: 2028 | Q36: 2029 | R36: 2030 | S36: 2031 | T36: 2032 | U36: 2033 | V36: 2034 | W36: 2035 | X36: 2036 | Y36: 2037 | Z36: 2038 | AA36: 2039 | AB36: 2040 | AC36: 2041 | AD36: 2042 | AE36: 2043 | AF36: 2044
B37: Inverter operation year | H37: =IF(MOD(H3,Storage_inverter_replacementyear-1)=0, Storage_inverter_replacementyear-1, MOD(H3,Storage_inverter_replacementyear-1)) -> 1 | I37: 2 | J37: 3 | K37: 4 | L37: 5 | M37: 6 | N37: 7 | O37: 8 | P37: 9 | Q37: 10 | R37: 11 | S37: 12 | T37: 13 | U37: 1 | V37: 2 | W37: 3 | X37: 4 | Y37: 5 | Z37: 6 | AA37: 7 | AB37: 8 | AC37: 9 | AD37: 10 | AE37: 11 | AF37: 12
B38: Inverter capital cost per kWh in year n | D38: INR | H38: =IF(H37=1, IF(H36=Storage_base_year, Storage_invertercapex_perkW, Storage_invertercapex_perkW*Storage_inverter_costimprovement), 0) -> 20000 | I38: 0 | J38: 0 | K38: 0 | L38: 0 | M38: 0 | N38: 0 | O38: 0 | P38: 0 | Q38: 0 | R38: 0 | S38: 0 | T38: 0 | U38: 12000 | V38: 0 | W38: 0 | X38: 0 | Y38: 0 | Z38: 0 | AA38: 0 | AB38: 0 | AC38: 0 | AD38: 0 | AE38: 0 | AF38: 0
B39: Capital cost | D39: INR | H39: =IF(H37=1, Storage_inverter_capacity*H38, 0) -> 240000 | I39: 0 | J39: 0 | K39: 0 | L39: 0 | M39: 0 | N39: 0 | O39: 0 | P39: 0 | Q39: 0 | R39: 0 | S39: 0 | T39: 0 | U39: 144000 | V39: 0 | W39: 0 | X39: 0 | Y39: 0 | Z39: 0 | AA39: 0 | AB39: 0 | AC39: 0 | AD39: 0 | AE39: 0 | AF39: 0
B40: Equity | D40: INR | H40: =H39*Storage_equity_percentage -> 72000 | I40: 0 | J40: 0 | K40: 0 | L40: 0 | M40: 0 | N40: 0 | O40: 0 | P40: 0 | Q40: 0 | R40: 0 | S40: 0 | T40: 0 | U40: 43200 | V40: 0 | W40: 0 | X40: 0 | Y40: 0 | Z40: 0 | AA40: 0 | AB40: 0 | AC40: 0 | AD40: 0 | AE40: 0 | AF40: 0
B41: Debt | D41: INR | H41: =H39-H40 -> 168000 | I41: 0 | J41: 0 | K41: 0 | L41: 0 | M41: 0 | N41: 0 | O41: 0 | P41: 0 | Q41: 0 | R41: 0 | S41: 0 | T41: 0 | U41: 100800 | V41: 0 | W41: 0 | X41: 0 | Y41: 0 | Z41: 0 | AA41: 0 | AB41: 0 | AC41: 0 | AD41: 0 | AE41: 0 | AF41: 0
B42: Annual depreciation | D42: INR | H42: =IF(H37=1, H39*Storage_depreciationrate_inverter*Storage_depreciation_on_capexpercentage, G42) -> 15784.61538 | I42: 15784.61538 | J42: 15784.61538 | K42: 15784.61538 | L42: 15784.61538 | M42: 15784.61538 | N42: 15784.61538 | O42: 15784.61538 | P42: 15784.61538 | Q42: 15784.61538 | R42: 15784.61538 | S42: 15784.61538 | T42: 15784.61538 | U42: 9470.769231 | V42: 9470.769231 | W42: 9470.769231 | X42: 9470.769231 | Y42: 9470.769231 | Z42: 9470.769231 | AA42: 9470.769231 | AB42: 9470.769231 | AC42: 9470.769231 | AD42: 9470.769231 | AE42: 9470.769231 | AF42: 9470.769231
B43: Asset value | D43: INR | H43: =IF(H37=1, H39, G43-G42) -> 240000 | I43: 224215.3846 | J43: 208430.7692 | K43: 192646.1538 | L43: 176861.5385 | M43: 161076.9231 | N43: 145292.3077 | O43: 129507.6923 | P43: 113723.0769 | Q43: 97938.46154 | R43: 82153.84615 | S43: 66369.23077 | T43: 50584.61538 | U43: 144000 | V43: 134529.2308 | W43: 125058.4615 | X43: 115587.6923 | Y43: 106116.9231 | Z43: 96646.15385 | AA43: 87175.38462 | AB43: 77704.61538 | AC43: 68233.84615 | AD43: 58763.07692 | AE43: 49292.30769 | AF43: 39821.53846
B44: Operation and Maintenance Expenses | D44: INR | H44: =IF(H37=1,H39*Storage_OandMpower_year1, G44+(G44*Storage_OandM_escalation)) -> 2400 | I44: 2537.28 | J44: 2682.412416 | K44: 2835.846406 | L44: 2998.056821 | M44: 3169.545671 | N44: 3350.843683 | O44: 3542.511942 | P44: 3745.143625 | Q44: 3959.36584 | R44: 4185.841566 | S44: 4425.271704 | T44: 4678.397245 | U44: 1440 | V44: 1522.368 | W44: 1609.44745 | X44: 1701.507844 | Y44: 1798.834092 | Z44: 1901.727402 | AA44: 2010.50621 | AB44: 2125.507165 | AC44: 2247.086175 | AD44: 2375.619504 | AE44: 2511.50494 | AF44: 2655.163022
B45: Insurance | D45: INR | H45: =Storage_insurance*H43 -> 840 | I45: 784.7538462 | J45: 729.5076923 | K45: 674.2615385 | L45: 619.0153846 | M45: 563.7692308 | N45: 508.5230769 | O45: 453.2769231 | P45: 398.0307692 | Q45: 342.7846154 | R45: 287.5384615 | S45: 232.2923077 | T45: 177.0461538 | U45: 504 | V45: 470.8523077 | W45: 437.7046154 | X45: 404.5569231 | Y45: 371.4092308 | Z45: 338.2615385 | AA45: 305.1138462 | AB45: 271.9661538 | AC45: 238.8184615 | AD45: 205.6707692 | AE45: 172.5230769 | AF45: 139.3753846
B46: Interest on term loan | D46: INR | H46: =H54 -> 17724 | I46: =I54 -> 17724 | J46: 15754.66667 | K46: 13785.33333 | L46: 11816 | M46: 9846.666667 | N46: 7877.333333 | O46: 5908 | P46: 3938.666667 | Q46: 1969.333333 | R46: 0 | S46: 0 | T46: 0 | U46: 10634.4 | V46: 10634.4 | W46: 9452.8 | X46: 8271.2 | Y46: 7089.6 | Z46: 5908 | AA46: 4726.4 | AB46: 3544.8 | AC46: 2363.2 | AD46: 1181.6 | AE46: 0 | AF46: 0
B47: Interest on working capital | D47: INR | H47: =H59+H61 -> 974.8915212 | I47: =I59+I61 -> 977.8174281 | J47: 943.0618618 | K47: 908.5475416 | L47: 874.2882667 | M47: 840.2986258 | N47: 806.5940419 | O47: 773.1908203 | P47: 740.1061989 | Q47: 707.3584016 | R47: 674.9666947 | S47: 680.8611134 | T47: 687.1535244 | U47: 584.9349127 | V47: 586.6904569 | W47: 565.8371171 | X47: 545.1285249 | Y47: 524.57296 | Z47: 504.1791755 | AA47: 483.9564251 | AB47: 463.9144922 | AC47: 444.0637193 | AD47: 424.4150409 | AE47: 404.9800168 | AF47: 408.516668
B48: Return on equity | D48: INR | H48: =OFFSET(H40,0,1-H37)*Storage_ROE -> 12672 | I48: 12672 | J48: 12672 | K48: 12672 | L48: 12672 | M48: 12672 | N48: 12672 | O48: 12672 | P48: 12672 | Q48: 12672 | R48: 12672 | S48: 12672 | T48: 12672 | U48: 7603.2 | V48: 7603.2 | W48: 7603.2 | X48: 7603.2 | Y48: 7603.2 | Z48: 7603.2 | AA48: 7603.2 | AB48: 7603.2 | AC48: 7603.2 | AD48: 7603.2 | AE48: 7603.2 | AF48: 7603.2
B50: Debt
B51: Debt opening balance | D51: INR | H51: =IF(H37=1, H41, G53) -> 168000 | I51: 168000 | J51: 149333.3333 | K51: 130666.6667 | L51: 112000 | M51: 93333.33333 | N51: 74666.66667 | O51: 56000 | P51: 37333.33333 | Q51: 18666.66667 | R51: 0 | S51: 0 | T51: 0 | U51: 100800 | V51: 100800 | W51: 89600 | X51: 78400 | Y51: 67200 | Z51: 56000 | AA51: 44800 | AB51: 33600 | AC51: 22400 | AD51: 11200 | AE51: 0 | AF51: 0
B52: Debt repayment | D52: INR | H52: =IF(H37>Storage_moratorium, IF(H51>0, OFFSET(H41,0,1-H37)/(Storage_loan_tenure-Moratorium), 0), 0) -> 0 | I52: 18666.66667 | J52: 18666.66667 | K52: 18666.66667 | L52: 18666.66667 | M52: 18666.66667 | N52: 18666.66667 | O52: 18666.66667 | P52: 18666.66667 | Q52: 18666.66667 | R52: 0 | S52: 0 | T52: 0 | U52: 0 | V52: 11200 | W52: 11200 | X52: 11200 | Y52: 11200 | Z52: 11200 | AA52: 11200 | AB52: 11200 | AC52: 11200 | AD52: 11200 | AE52: 0 | AF52: 0
B53: Debt closing balance | D53: INR | H53: =H51-H52 -> 168000 | I53: =I51-I52 -> 149333.3333 | J53: =J51-J52 -> 130666.6667 | K53: =K51-K52 -> 112000 | L53: 93333.33333 | M53: 74666.66667 | N53: 56000 | O53: 37333.33333 | P53: 18666.66667 | Q53: 0 | R53: 0 | S53: 0 | T53: 0 | U53: 100800 | V53: 89600 | W53: 78400 | X53: 67200 | Y53: 56000 | Z53: 44800 | AA53: 33600 | AB53: 22400 | AC53: 11200 | AD53: 0 | AE53: 0 | AF53: 0
B54: Interest | D54: INR | H54: =Storage_interest*H51 -> 17724 | I54: 17724 | J54: 15754.66667 | K54: 13785.33333 | L54: 11816 | M54: 9846.666667 | N54: 7877.333333 | O54: 5908 | P54: 3938.666667 | Q54: 1969.333333 | R54: 0 | S54: 0 | T54: 0 | U54: 10634.4 | V54: 10634.4 | W54: 9452.8 | X54: 8271.2 | Y54: 7089.6 | Z54: 5908 | AA54: 4726.4 | AB54: 3544.8 | AC54: 2363.2 | AD54: 1181.6 | AE54: 0 | AF54: 0
B55: Total debt service | D55: INR | H55: =H52+H54 -> 17724 | I55: =I52+I54 -> 36390.66667 | J55: 34421.33333 | K55: 32452 | L55: 30482.66667 | M55: 28513.33333 | N55: 26544 | O55: 24574.66667 | P55: 22605.33333 | Q55: 20636 | R55: 0 | S55: 0 | T55: 0 | U55: 10634.4 | V55: 21834.4 | W55: 20652.8 | X55: 19471.2 | Y55: 18289.6 | Z55: 17108 | AA55: 15926.4 | AB55: 14744.8 | AC55: 13563.2 | AD55: 12381.6 | AE55: 0 | AF55: 0
B57: Working Capital
B58: Operation and Maintenance wcap | D58: INR | H58: =H44/(12/Storage_workingcapital_OandM) -> 200 | I58: 211.44 | J58: 223.534368 | K58: 236.3205338 | L58: 249.8380684 | M58: 264.1288059 | N58: 279.2369736 | O58: 295.2093285 | P58: 312.0953021 | Q58: 329.9471534 | R58: 348.8201305 | S58: 368.772642 | T58: 389.8664371 | U58: 120 | V58: 126.864 | W58: 134.1206208 | X58: 141.7923203 | Y58: 149.902841 | Z58: 158.4772835 | AA58: 167.5421842 | AB58: 177.1255971 | AC58: 187.2571812 | AD58: 197.968292 | AE58: 209.2920783 | AF58: 221.2635852
B59: Interest on working capital - O&M | D59: INR | H59: =H58*Storage_interest_workingcap -> 23.1 | I59: 24.42132 | J59: 25.8182195 | K59: 27.29502166 | L59: 28.8562969 | M59: 30.50687708 | N59: 32.25187045 | O59: 34.09667744 | P59: 36.04700739 | Q59: 38.10889621 | R59: 40.28872508 | S59: 42.59324015 | T59: 45.02957349 | U59: 13.86 | V59: 14.652792 | W59: 15.4909317 | X59: 16.377013 | Y59: 17.31377814 | Z59: 18.30412625 | AA59: 19.35112227 | AB59: 20.45800646 | AC59: 21.62820443 | AD59: 22.86533773 | AE59: 24.17323505 | AF59: 25.55594409
B60: Receivables wcap | D60: INR | H60: =IF(Storage_workingcapital_receivables>0, (H44+H45+H42+H46+H48+H59)/(12/Storage_workingcapital_receivables),0) -> 8240.619231 | I60: 8254.511758 | J60: 7941.503397 | K60: 7629.891947 | L60: 7319.757314 | M60: 7011.183972 | N60: 6704.261225 | O60: 6399.083488 | P60: 6095.750575 | Q60: 5794.368012 | R60: 5495.047356 | S60: 5526.128773 | T60: 5559.514726 | U60: 4944.371538 | V60: 4952.707055 | W60: 4764.902038 | X60: 4577.935168 | Y60: 4391.854389 | Z60: 4206.710383 | AA60: 4022.556735 | AB60: 3839.450093 | AC60: 3657.450345 | AD60: 3476.620807 | AE60: 3297.028414 | AF60: 3315.677264
B61: Interest on reveivables wcap | D61: INR | H61: =H60*Storage_interest_workingcap -> 951.7915212 | I61: 953.3961081 | J61: 917.2436423 | K61: 881.2525199 | L61: 845.4319698 | M61: 809.7917487 | N61: 774.3421715 | O61: 739.0941428 | P61: 704.0591915 | Q61: 669.2495053 | R61: 634.6779696 | S61: 638.2678732 | T61: 642.1239509 | U61: 571.0749127 | V61: 572.0376649 | W61: 550.3461854 | X61: 528.751512 | Y61: 507.2591819 | Z61: 485.8750492 | AA61: 464.6053029 | AB61: 443.4564857 | AC61: 422.4355149 | AD61: 401.5497032 | AE61: 380.8067818 | AF61: 382.9607239
B63: Solar PV cost timeline
B64: Year | H64: =Storage_base_year -> 2020 | I64: =H64+1 -> 2021 | J64: =I64+1 -> 2022 | K64: 2023 | L64: 2024 | M64: 2025 | N64: 2026 | O64: 2027 | P64: 2028 | Q64: 2029 | R64: 2030 | S64: 2031 | T64: 2032 | U64: 2033 | V64: 2034 | W64: 2035 | X64: 2036 | Y64: 2037 | Z64: 2038 | AA64: 2039 | AB64: 2040 | AC64: 2041 | AD64: 2042 | AE64: 2043 | AF64: 2044
B65: Solar operation year | H65: =IF(MOD(H3,SolarPV_plant_life)=0, SolarPV_plant_life, MOD(H3,SolarPV_plant_life)) -> 1 | I65: 2 | J65: 3 | K65: 4 | L65: 5 | M65: 6 | N65: 7 | O65: 8 | P65: 9 | Q65: 10 | R65: 11 | S65: 12 | T65: 13 | U65: 14 | V65: 15 | W65: 16 | X65: 17 | Y65: 18 | Z65: 19 | AA65: 20 | AB65: 21 | AC65: 22 | AD65: 23 | AE65: 24 | AF65: 25
B66: Solar PV capital cost per kWh in year n | D66: INR | H66: =IF(H65=1, SolarPV_capex_perkW, 0) -> 41000 | I66: 0 | J66: 0 | K66: 0 | L66: 0 | M66: 0 | N66: 0 | O66: 0 | P66: 0 | Q66: 0 | R66: 0 | S66: 0 | T66: 0 | U66: 0 | V66: 0 | W66: 0 | X66: 0 | Y66: 0 | Z66: 0 | AA66: 0 | AB66: 0 | AC66: 0 | AD66: 0 | AE66: 0 | AF66: 0
B67: Gross capital cost | D67: INR | H67: =IF(H65=1, SolarPV_size*H66, 0) -> 984000 | I67: 0 | J67: 0 | K67: 0 | L67: 0 | M67: 0 | N67: 0 | O67: 0 | P67: 0 | Q67: 0 | R67: 0 | S67: 0 | T67: 0 | U67: 0 | V67: 0 | W67: 0 | X67: 0 | Y67: 0 | Z67: 0 | AA67: 0 | AB67: 0 | AC67: 0 | AD67: 0 | AE67: 0 | AF67: 0
B68: Net capital cost | D68: INR | H68: =IF(H65=1, SolarPV_size*(H66-SolarPV_capitalsubsidy_perkW), 0) -> 984000 | I68: 0 | J68: 0 | K68: 0 | L68: 0 | M68: 0 | N68: 0 | O68: 0 | P68: 0 | Q68: 0 | R68: 0 | S68: 0 | T68: 0 | U68: 0 | V68: 0 | W68: 0 | X68: 0 | Y68: 0 | Z68: 0 | AA68: 0 | AB68: 0 | AC68: 0 | AD68: 0 | AE68: 0 | AF68: 0
B69: Equity | D69: INR | H69: =H68*Storage_equity_percentage -> 295200 | I69: 0 | J69: 0 | K69: 0 | L69: 0 | M69: 0 | N69: 0 | O69: 0 | P69: 0 | Q69: 0 | R69: 0 | S69: 0 | T69: 0 | U69: 0 | V69: 0 | W69: 0 | X69: 0 | Y69: 0 | Z69: 0 | AA69: 0 | AB69: 0 | AC69: 0 | AD69: 0 | AE69: 0 | AF69: 0
B70: Debt | D70: INR | H70: =H68-H69 -> 688800 | I70: =I68-I69 -> 0 | J70: 0 | K70: 0 | L70: 0 | M70: 0 | N70: 0 | O70: 0 | P70: 0 | Q70: 0 | R70: 0 | S70: 0 | T70: 0 | U70: 0 | V70: 0 | W70: 0 | X70: 0 | Y70: 0 | Z70: 0 | AA70: 0 | AB70: 0 | AC70: 0 | AD70: 0 | AE70: 0 | AF70: 0
B71: Annual depreciation (on gross capital cost) | D71: INR | H71: =IF(H65=1, H67*Storage_depreciationrate_solarPV*Storage_depreciation_on_capexpercentage, G71) -> 33652.8 | I71: =IF(I65=1, I67*Storage_depreciationrate_solarPV*Storage_depreciation_on_capexpercentage, H71) -> 33652.8 | J71: =IF(J65=1, J67*Storage_depreciationrate_solarPV*Storage_depreciation_on_capexpercentage, I71) -> 33652.8 | K71: =IF(K65=1, K67*Storage_depreciationrate_solarPV*Storage_depreciation_on_capexpercentage, J71) -> 33652.8 | L71: =IF(L65=1, L67*Storage_depreciationrate_solarPV*Storage_depreciation_on_capexpercentage, K71) -> 33652.8 | M71: =IF(M65=1, M67*Storage_depreciationrate_solarPV*Storage_depreciation_on_capexpercentage, L71) -> 33652.8 | N71: =IF(N65=1, N67*Storage_depreciationrate_solarPV*Storage_depreciation_on_capexpercentage, M71) -> 33652.8 | O71: =IF(O65=1, O67*Storage_depreciationrate_solarPV*Storage_depreciation_on_capexpercentage, N71) -> 33652.8 | P71: =IF(P65=1, P67*Storage_depreciationrate_solarPV*Storage_depreciation_on_capexpercentage, O71) -> 33652.8 | Q71: =IF(Q65=1, Q67*Storage_depreciationrate_solarPV*Storage_depreciation_on_capexpercentage, P71) -> 33652.8 | R71: =IF(R65=1, R67*Storage_depreciationrate_solarPV*Storage_depreciation_on_capexpercentage, Q71) -> 33652.8 | S71: =IF(S65=1, S67*Storage_depreciationrate_solarPV*Storage_depreciation_on_capexpercentage, R71) -> 33652.8 | T71: =IF(T65=1, T67*Storage_depreciationrate_solarPV*Storage_depreciation_on_capexpercentage, S71) -> 33652.8 | U71: =IF(U65=1, U67*Storage_depreciationrate_solarPV*Storage_depreciation_on_capexpercentage, T71) -> 33652.8 | V71: =IF(V65=1, V67*Storage_depreciationrate_solarPV*Storage_depreciation_on_capexpercentage, U71) -> 33652.8 | W71: =IF(W65=1, W67*Storage_depreciationrate_solarPV*Storage_depreciation_on_capexpercentage, V71) -> 33652.8 | X71: =IF(X65=1, X67*Storage_depreciationrate_solarPV*Storage_depreciation_on_capexpercentage, W71) -> 33652.8 | Y71: =IF(Y65=1, Y67*Storage_depreciationrate_solarPV*Storage_depreciation_on_capexpercentage, X71) -> 33652.8 | Z71: =IF(Z65=1, Z67*Storage_depreciationrate_solarPV*Storage_depreciation_on_capexpercentage, Y71) -> 33652.8 | AA71: =IF(AA65=1, AA67*Storage_depreciationrate_solarPV*Storage_depreciation_on_capexpercentage, Z71) -> 33652.8 | AB71: =IF(AB65=1, AB67*Storage_depreciationrate_solarPV*Storage_depreciation_on_capexpercentage, AA71) -> 33652.8 | AC71: =IF(AC65=1, AC67*Storage_depreciationrate_solarPV*Storage_depreciation_on_capexpercentage, AB71) -> 33652.8 | AD71: =IF(AD65=1, AD67*Storage_depreciationrate_solarPV*Storage_depreciation_on_capexpercentage, AC71) -> 33652.8 | AE71: =IF(AE65=1, AE67*Storage_depreciationrate_solarPV*Storage_depreciation_on_capexpercentage, AD71) -> 33652.8 | AF71: =IF(AF65=1, AF67*Storage_depreciationrate_solarPV*Storage_depreciation_on_capexpercentage, AE71) -> 33652.8
B72: Annual depreciation (on net capital cost) | D72: INR | H72: =IF(H65=1, H68*Storage_depreciationrate_solarPV*Storage_depreciation_on_capexpercentage, G72) -> 33652.8 | I72: 33652.8 | J72: 33652.8 | K72: 33652.8 | L72: 33652.8 | M72: 33652.8 | N72: 33652.8 | O72: 33652.8 | P72: 33652.8 | Q72: 33652.8 | R72: 33652.8 | S72: 33652.8 | T72: 33652.8 | U72: 33652.8 | V72: 33652.8 | W72: 33652.8 | X72: 33652.8 | Y72: 33652.8 | Z72: 33652.8 | AA72: 33652.8 | AB72: 33652.8 | AC72: 33652.8 | AD72: 33652.8 | AE72: 33652.8 | AF72: 33652.8
B73: Asset value | D73: INR | H73: =IF(H65=1, H67, G73-G71) -> 984000 | I73: =IF(I65=1, I67, H73-H71) -> 950347.2 | J73: 916694.4 | K73: 883041.6 | L73: 849388.8 | M73: 815736 | N73: 782083.2 | O73: 748430.4 | P73: 714777.6 | Q73: 681124.8 | R73: 647472 | S73: 613819.2 | T73: 580166.4 | U73: 546513.6 | V73: 512860.8 | W73: 479208 | X73: 445555.2 | Y73: 411902.4 | Z73: 378249.6 | AA73: 344596.8 | AB73: 310944 | AC73: 277291.2 | AD73: 243638.4 | AE73: 209985.6 | AF73: 176332.8
B74: Operation and Maintenance Expenses | D74: INR | H74: =IF(H65=1,H67*SolarPV_OandM_year1, G74+(G74*Storage_OandM_escalation)) -> 13776 | I74: 14563.9872 | J74: 15397.04727 | K74: 16277.75837 | L74: 17208.84615 | M74: 18193.19215 | N74: 19233.84274 | O74: 20334.01855 | P74: 21497.12441 | Q74: 22726.75992 | R74: 24026.73059 | S74: 25401.05958 | T74: 26854.00019 | U74: 28390.049 | V74: 30013.9598 | W74: 31730.7583 | X74: 33545.75768 | Y74: 35464.57502 | Z74: 37493.14871 | AA74: 39637.75681 | AB74: 41905.0365 | AC74: 44302.00459 | AD74: 46836.07925 | AE74: 49515.10299 | AF74: 52347.36688
B75: Insurance | D75: INR | H75: =Storage_insurance*H73 -> 3444 | I75: 3326.2152 | J75: 3208.4304 | K75: 3090.6456 | L75: 2972.8608 | M75: 2855.076 | N75: 2737.2912 | O75: 2619.5064 | P75: 2501.7216 | Q75: 2383.9368 | R75: 2266.152 | S75: 2148.3672 | T75: 2030.5824 | U75: 1912.7976 | V75: 1795.0128 | W75: 1677.228 | X75: 1559.4432 | Y75: 1441.6584 | Z75: 1323.8736 | AA75: 1206.0888 | AB75: 1088.304 | AC75: 970.5192 | AD75: 852.7344 | AE75: 734.9496 | AF75: 617.1648
B76: Interest on term loan | D76: INR | H76: =H84 -> 72668.4 | I76: =I84 -> 72668.4 | J76: 64594.13333 | K76: 56519.86667 | L76: 48445.6 | M76: 40371.33333 | N76: 32297.06667 | O76: 24222.8 | P76: 16148.53333 | Q76: 8074.266667 | R76: 0 | S76: 0 | T76: 0 | U76: 0 | V76: 0 | W76: 0 | X76: 0 | Y76: 0 | Z76: 0 | AA76: 0 | AB76: 0 | AC76: 0 | AD76: 0 | AE76: 0 | AF76: 0
B77: Interest on working capital | D77: INR | H77: =H89+H91 -> 3513.452134 | I77: =I89+I91 -> 3534.083907 | J77: 3400.595876 | K77: 3268.492598 | L77: 3137.85328 | M77: 3008.76166 | N77: 2881.306269 | O77: 2755.580696 | P77: 2631.683889 | Q77: 2509.720452 | R77: 2389.800974 | S77: 2427.472004 | T77: 2467.427509 | U77: 2509.798162 | V77: 2554.72211 | W77: 2602.3454 | X77: 2652.822434 | Y77: 2706.316449 | Z77: 2763.000013 | AA77: 2823.055571 | AB77: 2886.675999 | AC77: 2954.065208 | AD77: 3025.438773 | AE77: 3101.024599 | AF77: 3181.063627
B78: Return on equity | D78: INR | H78: =OFFSET(H69,0,1-H65)*Storage_ROE -> 51955.2 | I78: 51955.2 | J78: 51955.2 | K78: 51955.2 | L78: 51955.2 | M78: 51955.2 | N78: 51955.2 | O78: 51955.2 | P78: 51955.2 | Q78: 51955.2 | R78: 51955.2 | S78: 51955.2 | T78: 51955.2 | U78: 51955.2 | V78: 51955.2 | W78: 51955.2 | X78: 51955.2 | Y78: 51955.2 | Z78: 51955.2 | AA78: 51955.2 | AB78: 51955.2 | AC78: 51955.2 | AD78: 51955.2 | AE78: 51955.2 | AF78: 51955.2
B80: Debt
B81: Debt opening balance | D81: INR | H81: =IF(H65=1, H70, G83) -> 688800 | I81: 688800 | J81: 612266.6667 | K81: 535733.3333 | L81: 459200 | M81: 382666.6667 | N81: 306133.3333 | O81: 229600 | P81: 153066.6667 | Q81: 76533.33333 | R81: 0 | S81: 0 | T81: 0 | U81: 0 | V81: 0 | W81: 0 | X81: 0 | Y81: 0 | Z81: 0 | AA81: 0 | AB81: 0 | AC81: 0 | AD81: 0 | AE81: 0 | AF81: 0
B82: Debt repayment | D82: INR | H82: =IF(H65>Storage_moratorium, IF(H81>0, OFFSET(H70,0,1-H65)/(Storage_loan_tenure-Storage_moratorium), 0), 0) -> 0 | I82: 76533.33333 | J82: 76533.33333 | K82: 76533.33333 | L82: 76533.33333 | M82: 76533.33333 | N82: 76533.33333 | O82: 76533.33333 | P82: 76533.33333 | Q82: 76533.33333 | R82: 0 | S82: 0 | T82: 0 | U82: 0 | V82: 0 | W82: 0 | X82: 0 | Y82: 0 | Z82: 0 | AA82: 0 | AB82: 0 | AC82: 0 | AD82: 0 | AE82: 0 | AF82: 0
B83: Debt closing balance | D83: INR | H83: =H81-H82 -> 688800 | I83: =I81-I82 -> 612266.6667 | J83: =J81-J82 -> 535733.3333 | K83: =K81-K82 -> 459200 | L83: 382666.6667 | M83: 306133.3333 | N83: 229600 | O83: 153066.6667 | P83: 76533.33333 | Q83: 0 | R83: 0 | S83: 0 | T83: 0 | U83: 0 | V83: 0 | W83: 0 | X83: 0 | Y83: 0 | Z83: 0 | AA83: 0 | AB83: 0 | AC83: 0 | AD83: 0 | AE83: 0 | AF83: 0
B84: Interest | D84: INR | H84: =Storage_interest*H81 -> 72668.4 | I84: 72668.4 | J84: 64594.13333 | K84: 56519.86667 | L84: 48445.6 | M84: 40371.33333 | N84: 32297.06667 | O84: 24222.8 | P84: 16148.53333 | Q84: 8074.266667 | R84: 0 | S84: 0 | T84: 0 | U84: 0 | V84: 0 | W84: 0 | X84: 0 | Y84: 0 | Z84: 0 | AA84: 0 | AB84: 0 | AC84: 0 | AD84: 0 | AE84: 0 | AF84: 0
B85: Total debt service | D85: INR | H85: =H82+H84 -> 72668.4 | I85: =I82+I84 -> 149201.7333 | J85: 141127.4667 | K85: 133053.2 | L85: 124978.9333 | M85: 116904.6667 | N85: 108830.4 | O85: 100756.1333 | P85: 92681.86667 | Q85: 84607.6 | R85: 0 | S85: 0 | T85: 0 | U85: 0 | V85: 0 | W85: 0 | X85: 0 | Y85: 0 | Z85: 0 | AA85: 0 | AB85: 0 | AC85: 0 | AD85: 0 | AE85: 0 | AF85: 0
B87: Working Capital
B88: Operation and Maintenance wcap | D88: INR | H88: =H74/(12/Storage_workingcapital_OandM) -> 1148 | I88: 1213.6656 | J88: 1283.087272 | K88: 1356.479864 | L88: 1434.070513 | M88: 1516.099346 | N88: 1602.820228 | O88: 1694.501546 | P88: 1791.427034 | Q88: 1893.89666 | R88: 2002.227549 | S88: 2116.754965 | T88: 2237.833349 | U88: 2365.837417 | V88: 2501.163317 | W88: 2644.229859 | X88: 2795.479806 | Y88: 2955.381251 | Z88: 3124.429059 | AA88: 3303.146401 | AB88: 3492.086375 | AC88: 3691.833716 | AD88: 3903.006604 | AE88: 4126.258582 | AF88: 4362.280573
B89: Interest on working capital - O&M | D89: INR | H89: =H88*Storage_interest_workingcap -> 132.594 | I89: 140.1783768 | J89: 148.19658 | K89: 156.6734243 | L89: 165.6351442 | M89: 175.1094744 | N89: 185.1257364 | O89: 195.7149285 | P89: 206.9098224 | Q89: 218.7450643 | R89: 231.2572819 | S89: 244.4851985 | T89: 258.4697518 | U89: 273.2542216 | V89: 288.8843631 | W89: 305.4085487 | X89: 322.8779176 | Y89: 341.3465345 | Z89: 360.8715563 | AA89: 381.5134093 | AB89: 403.3359763 | AC89: 426.4067942 | AD89: 450.7972628 | AE89: 476.5828663 | AF89: 503.8434062
B90: Receivables wcap | D90: INR | H90: =IF(Storage_workingcapital_receivables>0, (H74+H75+H72+H76+H78+H89)/(12/Storage_workingcapital_receivables),0) -> 29271.499 | I90: 29384.46346 | J90: 28159.30126 | K90: 26942.15734 | L90: 25733.49035 | M90: 24533.78516 | N90: 23343.55439 | O90: 22163.33998 | P90: 20993.71486 | Q90: 19835.28474 | R90: 18688.68998 | S90: 18900.31866 | T90: 19125.17539 | U90: 19364.0168 | V90: 19617.64283 | W90: 19886.89914 | X90: 20172.6798 | Y90: 20475.92999 | Z90: 20797.64898 | AA90: 21138.89317 | AB90: 21500.77941 | AC90: 21884.48843 | AD90: 22291.26849 | AE90: 22722.43924 | AF90: 23179.39585
B91: Interest on reveivables wcap | D91: INR | H91: =H90*Storage_interest_workingcap -> 3380.858134 | I91: 3393.90553 | J91: 3252.399296 | K91: 3111.819173 | L91: 2972.218135 | M91: 2833.652186 | N91: 2696.180532 | O91: 2559.865768 | P91: 2424.774066 | Q91: 2290.975388 | R91: 2158.543693 | S91: 2182.986806 | T91: 2208.957758 | U91: 2236.543941 | V91: 2265.837747 | W91: 2296.936851 | X91: 2329.944517 | Y91: 2364.969914 | Z91: 2402.128457 | AA91: 2441.542161 | AB91: 2483.340022 | AC91: 2527.658414 | AD91: 2574.64151 | AE91: 2624.441732 | AF91: 2677.22022
B93: Cost of Generation
B94: Solar PV generation | D94: kWh | H94: =SolarPV_size*24*365*SolarPV_CUF*(1-Storage_solarPV_degradation)^(H3-1) -> 39945.6 | I94: 39146.688 | J94: 38363.75424 | K94: 37596.47916 | L94: 36844.54957 | M94: 36107.65858 | N94: 35385.50541 | O94: 34677.7953 | P94: 33984.23939 | Q94: 33304.55461 | R94: 32638.46351 | S94: 31985.69424 | T94: 31345.98036 | U94: 30719.06075 | V94: 30104.67954 | W94: 29502.58595 | X94: 28912.53423 | Y94: 28334.28354 | Z94: 27767.59787 | AA94: 27212.24591 | AB94: 26668.001 | AC94: 26134.64098 | AD94: 25611.94816 | AE94: 25099.70919 | AF94: 24597.71501
B95: kWh input for storage | D95: kWh | H95: =Storage_capacity*Storage_annual_cycles*(1-Storage_cycle_degradation)^((H7-1)*Storage_annual_cycles)*(1-Storage_time_degradation)^(H7-1) -> 17520 | I95: 16874.715 | J95: 16253.19671 | K95: 15654.56977 | L95: 15077.99106 | M95: 14522.64852 | N95: 13987.75998 | O95: 13472.5721 | P95: 12976.35927 | Q95: 12498.42263 | R95: 12038.08904 | S95: 17520 | T95: 16874.715 | U95: 16253.19671 | V95: 15654.56977 | W95: 15077.99106 | X95: 14522.64852 | Y95: 13987.75998 | Z95: 13472.5721 | AA95: 12976.35927 | AB95: 12498.42263 | AC95: 12038.08904 | AD95: 17520 | AE95: 16874.715 | AF95: 16253.19671
B96: kWh available from storage | D96: kWh | H96: =H95*Storage_roundtripefficiency -> 16994.4 | I96: 16368.47355 | J96: 15765.60081 | K96: 15184.93268 | L96: 14625.65133 | M96: 14086.96906 | N96: 13568.12718 | O96: 13068.39493 | P96: 12587.0685 | Q96: 12123.46995 | R96: 11676.94636 | S96: 16994.4 | T96: 16368.47355 | U96: 15765.60081 | V96: 15184.93268 | W96: 14625.65133 | X96: 14086.96906 | Y96: 13568.12718 | Z96: 13068.39493 | AA96: 12587.0685 | AB96: 12123.46995 | AC96: 11676.94636 | AD96: 16994.4 | AE96: 16368.47355 | AF96: 15765.60081
B97: Operation and Maintenance Expenses | D97: INR | H97: =H16+H44+H74 -> 23250.72 | I97: 24580.66118 | J97: 25986.675 | K97: 27473.11281 | L97: 29044.57487 | M97: 30705.92455 | N97: 32462.30343 | O97: 34319.14719 | P97: 36282.20241 | Q97: 38357.54439 | R97: 40551.59593 | S97: 32984.25128 | T97: 34870.95046 | U97: 33359.56726 | V97: 35267.7345 | W97: 37285.04892 | X97: 39417.75371 | Y97: 41672.44923 | Z97: 44056.11332 | AA97: 46576.12301 | AB97: 49240.27724 | AC97: 52056.8211 | AD97: 51538.78239 | AE97: 54486.80075 | AF97: 57603.44575
B98: Insurance | D98: INR | H98: =H17+H45+H75 -> 7925.4 | I98: 7469.332955 | J98: 7013.26591 | K98: 6557.198866 | L98: 6101.131821 | M98: 5645.064776 | N98: 5188.997731 | O98: 4732.930687 | P98: 4276.863642 | Q98: 3820.796597 | R98: 3364.729552 | S98: 4006.059508 | T98: 3706.690645 | U98: 3789.521782 | V98: 3512.25138 | W98: 3234.980979 | X98: 2957.710578 | Y98: 2680.440176 | Z98: 2403.169775 | AA98: 2125.899373 | AB98: 1848.628972 | AC98: 1571.358571 | AD98: 2256.168806 | AE98: 2012.137412 | AF98: 1768.106019
B99: Depreciation (on net capital cost) | D99: INR | H99: =H14+H42+H72 -> 130304.8699 | I99: =I14+I42+I72 -> 130304.8699 | J99: 130304.8699 | K99: 130304.8699 | L99: 130304.8699 | M99: 130304.8699 | N99: 130304.8699 | O99: 130304.8699 | P99: 130304.8699 | Q99: 130304.8699 | R99: 130304.8699 | S99: 85533.96084 | T99: 85533.96084 | U99: 79220.11469 | V99: 79220.11469 | W99: 79220.11469 | X99: 79220.11469 | Y99: 79220.11469 | Z99: 79220.11469 | AA99: 79220.11469 | AB99: 79220.11469 | AC99: 79220.11469 | AD99: 69723.25518 | AE99: 69723.25518 | AF99: 69723.25518
B100: Interest on term loan | D100: INR | H100: =H18+H46+H76 -> 167225.94 | I100: 167225.94 | J100: 149498.986 | K100: 131772.032 | L100: 114045.078 | M100: 96318.124 | N100: 78591.17 | O100: 60864.216 | P100: 43137.262 | Q100: 25410.308 | R100: 7683.354 | S100: 34295.94 | T100: 34295.94 | U100: 41500.746 | V100: 38071.152 | W100: 33459.958 | X100: 28848.764 | Y100: 24237.57 | Z100: 19626.376 | AA100: 15015.182 | AB100: 10403.988 | AC100: 5792.794 | AD100: 26454.41273 | AE100: 25272.81273 | AF100: 22745.53145
B101: Interest on working capital | D101: INR | H101: =H19+H47+H77 -> 8857.240664 | I101: 8887.109838 | J101: 8577.94584 | K101: 8271.118986 | L101: 7966.76296 | M101: 7665.019094 | N101: 7366.036803 | O101: 7069.974049 | P101: 6776.997831 | Q101: 6487.284698 | R101: 6201.021297 | S101: 5058.463616 | T101: 5107.528774 | U101: 4984.778629 | V101: 4968.873366 | W101: 4933.394151 | X101: 4901.268213 | Y101: 4872.687359 | Z101: 4847.854368 | AA101: 4826.983618 | AB101: 4810.30175 | AC101: 4798.048367 | AD101: 4886.912628 | AE101: 4945.139467 | AF101: 4982.362278
B102: Return on equity | D102: INR | H102: =H20+H48+H78 -> 119560.32 | I102: 119560.32 | J102: 119560.32 | K102: 119560.32 | L102: 119560.32 | M102: 119560.32 | N102: 119560.32 | O102: 119560.32 | P102: 119560.32 | Q102: 119560.32 | R102: 119560.32 | S102: 89147.52 | T102: 89147.52 | U102: 84078.72 | V102: 84078.72 | W102: 84078.72 | X102: 84078.72 | Y102: 84078.72 | Z102: 84078.72 | AA102: 84078.72 | AB102: 84078.72 | AC102: 84078.72 | AD102: 77627.52 | AE102: 77627.52 | AF102: 77627.52
B103: Cost of eletricity | D103: INR | H103: =IF(Storage_technology="Standalone", H95*Storage_charging_cost*(1+Storage_chargingcost_escalation)^(H3-1), IF(H95>H94*Storage_excess_solar, (H95-H94*Storage_excess_solar)*Storage_charging_cost*(1+Storage_chargingcost_escalation)^(H3-1), 0)) -> 0 | I103: 0 | J103: 0 | K103: 0 | L103: 0 | M103: 0 | N103: 0 | O103: 0 | P103: 0 | Q103: 0 | R103: 0 | S103: 16585.88042 | T103: 13704.09455 | U103: 10700.64638 | V103: 7571.576271 | W103: 4312.804833 | X103: 920.1294442 | Y103: 0 | Z103: 0 | AA103: 0 | AB103: 0 | AC103: 0 | AD103: 87564.94337 | AE103: 84352.83788 | AF103: 80982.43366
B104: Total cost of generation | D104: INR | H104: =SUM(H97:H103) -> 457124.4906 | I104: 458028.2339 | J104: 440942.0627 | K104: 423938.6526 | L104: 407022.7376 | M104: 390199.3223 | N104: 373473.6979 | O104: 356851.4579 | P104: 340338.5158 | Q104: 323941.1236 | R104: 307665.8907 | S104: 267612.0757 | T104: 266366.6853 | U104: 257634.0947 | V104: 252690.4222 | W104: 246525.0216 | X104: 240344.4606 | Y104: 236761.9814 | Z104: 234232.3482 | AA104: 231843.0227 | AB104: 229602.0306 | AC104: 227517.8567 | AD104: 320051.9951 | AE104: 318420.5034 | AF104: 315432.6543
B105: Cost of generation per kWh | D105: INR | H105: =IF(Storage_technology="Standalone",H104/H96,H104/(H94-H95+H96)) -> 11.59625801 | I105: 11.85359577 | J105: 11.64167862 | K105: 11.4186564 | L105: 11.18433696 | M105: 10.93853865 | N105: 10.68109188 | O105: 10.41184086 | P105: 10.13064552 | Q105: 9.837383529 | R105: 9.531952549 | S105: 8.506397775 | T105: 8.637125173 | U105: 8.522051313 | V105: 8.526744063 | W105: 8.486159454 | X105: 8.4399932 | Y105: 8.481638679 | Z105: 8.560053607 | AA105: 8.643455633 | AB105: 8.73242341 | AC105: 8.827589256 | AD105: 12.75801456 | AE105: 12.94736093 | AF105: 13.08299859
B106: Discount factor | H106: 1 | I106: =H106/(1+Storage_discount_rate) -> 0.9129918744 | J106: 0.8335541627 | K106: 0.7610281774 | L106: 0.6948125421 | M106: 0.6343582052 | N106: 0.5791638867 | O106: 0.5287719225 | P106: 0.4827644687 | Q106: 0.4407600371 | R106: 0.4024103324 | S106: 0.3673973637 | T106: 0.3354308077 | U106: 0.3062456019 | V106: 0.2795997461 | W106: 0.2552722962 | X106: 0.2330615322 | Y106: 0.2127832851 | Z106: 0.1942694103 | AA106: 0.1773663931 | AB106: 0.1619340757 | AC106: 0.1478444953 | AD106: 0.1349808228 | AE106: 0.1232363945 | AF106: 0.1125138268
B107: Present value | D107: INR | H107: =H105*H106 -> 11.59625801 | I107: =I105*I106 -> 10.82223662 | J107: 9.703969673 | K107: 8.689919265 | L107: 7.771017595 | M107: 6.938951744 | N107: 6.186102686 | O107: 5.50548911 | P107: 4.890715703 | Q107: 4.335925529 | R107: 3.835756194 | S107: 3.125228117 | T107: 2.897157873 | U107: 2.609840733 | V107: 2.384075475 | W107: 2.16628141 | X107: 1.967037747 | Y107: 1.804750941 | Z107: 1.662956567 | AA107: 1.533058549 | AB107: 1.414076913 | AC107: 1.305110478 | AD107: 1.722087303 | AE107: 1.595586079 | AF107: 1.472018237
B108: Levelised cost of generation | D108: INR | F108: =IF(Storage_technology="Solar+Storage", SUM(OFFSET(H107,0,0,1,SolarPV_plant_life))/SUM(OFFSET(H106,0,0,1,SolarPV_plant_life)), SUM(OFFSET(H107,0,0,1,Storage_life))/SUM(OFFSET(H106,0,0,1,Storage_life))) -> 10.46643082
B109: Average cost of generation | D109: INR | F109: =IF(Storage_technology="Solar+Storage", AVERAGE(OFFSET(H105,0,0,1,SolarPV_plant_life)), AVERAGE(OFFSET(H105,0,0,1,Storage_life))) -> 10.09511938

Sheet Storage charging cost
B3: Charging source | D3: Cost (Rs/kWh)
B4: Solar PV | D4: 0
B5: Domestic (1-50 kWh) | D5: 2.5
B6: Domestic (51-100 kWh) | D6: 2.5
B7: Domestic (101-250 kWh) | D7: 3
B8: Domestic (Above 250 kWh) | D8: 6.6
B9: Public Lighting | D9: 6.35
B10: LT Govt. Educational Institution | D10: 5.75
B11: LT Pvt. Educational Institution | D11: 7.5
B12: LT Industries | D12: 6.35
B13: LT Commercial (Above 50 kWh) | D13: 8.05
B14: HT Industries | D14: 6.35
B15: HT Govt. Educational Institution | D15: 6.35
B16: HT Pvt. Educational Institution | D16: 6.35
B17: HT Commercial | D17: 8
B18: Custom | D18: 3.7

Sheet Cost projections
B2: Li-ion storage cost improvement curve
B3: Year | D3: Cost improvement (%)
B4: 2015 | D4: 1
B5: 2016 | D5: 0.92
B6: 2017 | D6: 0.8
B7: 2018 | D7: 0.71
B8: 2019 | D8: 0.62
B9: 2020 | D9: 0.55
B10: 2021 | D10: 0.49 | I10: 2015 | J10: 100
B11: 2022 | D11: 0.44 | I11: 2020 | J11: 55
B12: 2023 | D12: 0.41 | I12: 2025 | J12: 34
B13: 2024 | D13: 0.37 | I13: 2030 | J13: 23
B14: 2025 | D14: 0.34 | I14: 2035 | J14: 18
B15: 2026 | D15: 0.31 | I15: 2040 | J15: 16
B16: 2027 | D16: 0.28 | I16: 2045 | J16: 15
B17: 2028 | D17: 0.26 | I17: 2050 | J17: 14
B18: 2029 | D18: 0.25
B19: 2030 | D19: 0.23
B20: 2031 | D20: 0.22
B21: 2032 | D21: 0.21
B22: 2033 | D22: 0.2
B23: 2034 | D23: 0.19
B24: 2035 | D24: 0.18
B25: 2036 | D25: 0.17
B26: 2037 | D26: 0.17
B27: 2038 | D27: 0.16
B28: 2039 | D28: 0.16
B29: 2040 | D29: 0.16
B30: 2041 | D30: 0.16
B31: 2042 | D31: 0.15
B32: 2043 | D32: 0.15
B33: 2044 | D33: 0.15
B34: 2045 | D34: 0.15
B35: 2046 | D35: 0.15
B36: 2047 | D36: 0.14
B37: 2048 | D37: 0.14
B38: 2049 | D38: 0.14
B39: 2050 | D39: 0.14
B40: 2051 | D40: 0.14
B41: 2052 | D41: 0.14
B42: 2053 | D42: 0.13
B43: 2054 | D43: 0.13
B44: 2055 | D44: 0.13
B45: 2056 | D45: 0.13
B46: 2057 | D46: 0.13
B47: 2058 | D47: 0.13
B48: 2059 | D48: 0.13
B49: 2060 | D49: 0.13

Sheet Storage references
A1: This tool uses the cost improvement curve on this sheet to calculate the future cost of Li-ion storage modules. The cost curve is based on the following reference: Schmidt, O., Melchior, S., Hawkes, A., and Staffell, I. (2018). The future cost of electrical energy storage based on experience rates:dataset. Figshare Digital Repository (2018). Available at: https://doi.org/10.6084/m9.figshare. Historical inverter price trends (global and Indian context) are noted at: https://renewablewatch.in/2017/10/24/solar-inverter-trends/ MNRE's benchmark capital costs for rooftop solar provide a reference for historical price trends in solar PV.

Sheet Results (hidden)
C4: Parameter | E4: Unit | G4: Solar+Storage (LT Industry) | I4: Solar+Storage (LT Industry) | K4: Standalone Storage (LT Industry)
C5: Installation year | G5: 2020 | I5: 2025 | K5: 2020
C6: Solar PV capital cost (w/o inverter) | E6: INR/kW | G6: 41000 | I6: 35000 | K6: 41000
C7: Solar PV capacity | E7: kW | G7: 24 | I7: 24 | K7: 24
C8: Inverter capital cost | E8: INR/kVA | G8: 20000 | I8: 16000
C9: Inverter replacement year | G9: 13 | I9: 13 | K9: 13
C10: Inverter cost improvement in replacement year | G10: 0.6 | I10: 0.7 | K10: 0.6
C11: Inverter capacity | E11: kVA | G11: 12 | I11: 12 | K11: 12
C12: Storage capital cost | E12: INR/kWh | G12: 20000 | I12: 12000 | K12: 20000
C13: Storage rack and others | E13: INR | G13: 64000 | I13: 64000 | K13: 64000
C14: EPC cost | E14: INR | G14: 14000 | I14: 14000 | K14: 14000
C15: Storage duration | E15: Hr | G15: 4 | I15: 4 | K15: 4
C16: Storage life cycles | G16: 4000 | I16: 4000 | K16: 4000
C17: Storage cycles/year at 100% DoD | G17: 365 | I17: 365 | K17: 760
C18: LCOS | E18: INR/kWh | G18: 9.96 | I18: 7.77 | K18: 12.49
